Department family,Entity,Date,Expense type,Expense area,Supplier,Transaction number,Amount,VAT registration number,
Department for Business Energy and Industrial Strategy,Intellectual Property Office,10/10/2016,Perpetual Licences,IT Directorate,Paypal,H57720161012oevgoylph,418.55,Not Applicable,
Department for Business Energy and Industrial Strategy,Intellectual Property Office,14/10/2016, 2 Minute Smile,People Places & Serv Direct,Amazon UK Retail,H57720161018qtfdygnzf,10.00,Not Applicable,
Department for Business Energy and Industrial Strategy,Intellectual Property Office,08/10/2016, 2 Minute Smile,People Places & Serv Direct,Poundland Ltd 1289,H57720161011tffnpuxdc,2.00,Not Applicable,
Department for Business Energy and Industrial Strategy,Intellectual Property Office,05/10/2016, 2 Minute Smile,People Places & Serv Direct,Amazon UK Marketplace,H57720161007ibnjottvi,6.12,Not Applicable,
Department for Business Energy and Industrial Strategy,Intellectual Property Office,19/10/2016,Entertainment,People Places & Serv Direct,Tesco Store 2931,H57720161021novykqnzz,37.48,Not Applicable,
Department for Business Energy and Industrial Strategy,Intellectual Property Office,19/10/2016,Other,People Places & Serv Direct,Paypal,H57720161021gmmrntctr,101.40,Not Applicable,
Department for Business Energy and Industrial Strategy,Intellectual Property Office,19/10/2016,Other,People Places & Serv Direct,Paypal,H57720161021uhqsqfgbh,6.68,Not Applicable,
Department for Business Energy and Industrial Strategy,Intellectual Property Office,19/10/2016,Other,People Places & Serv Direct,Paypal,H57720161021yhqorfvcx,12.38,Not Applicable,
Department for Business Energy and Industrial Strategy,Intellectual Property Office,17/10/2016,Other,People Places & Serv Direct,Paypal,H57720161019fdecuukjl,18.36,Not Applicable,
Department for Business Energy and Industrial Strategy,Intellectual Property Office,14/10/2016,Books,People Places & Serv Direct,Paypal,H57720161018ngxbvwbxb,4.76,Not Applicable,
Department for Business Energy and Industrial Strategy,Intellectual Property Office,11/10/2016,Other,People Places & Serv Direct,Amazon UK Marketplace,H57720161013jdcsjooxb,27.96,Not Applicable,
Department for Business Energy and Industrial Strategy,Intellectual Property Office,07/10/2016,Other,People Places & Serv Direct,Paypal,H57720161011dpxkfinlr,46.28,Not Applicable,
Department for Business Energy and Industrial Strategy,Intellectual Property Office,07/10/2016,Other,People Places & Serv Direct,Paypal,H57720161011minkqoqjz,29.72,Not Applicable,
Department for Business Energy and Industrial Strategy,Intellectual Property Office,07/10/2016,Other,People Places & Serv Direct,Paypal,H57720161011moppfrmim,8.43,Not Applicable,
Department for Business Energy and Industrial Strategy,Intellectual Property Office,07/10/2016,Other,People Places & Serv Direct,Paypal,H57720161011vwyqejlth,16.74,Not Applicable,
Department for Business Energy and Industrial Strategy,Intellectual Property Office,06/10/2016,Other,People Places & Serv Direct,Halfords On Line,H57720161011ykvhafnot,15.49,Not Applicable,
Department for Business Energy and Industrial Strategy,Intellectual Property Office,04/10/2016,Other,People Places & Serv Direct,Www.Mind.Org.Uk,H57720161006wpoyhxisp,180.00,Not Applicable,
Department for Business Energy and Industrial Strategy,Intellectual Property Office,18/10/2016,Network and infrastructure H/W,IT Directorate,Tesco Stores 2931,H57720161020hsobpshgj,24.10,Not Applicable,
Department for Business Energy and Industrial Strategy,Intellectual Property Office,11/10/2016,Network and infrastructure H/W,IT Directorate,Asda Superstore 4928,H57720161014vwcogkwhx,38.55,Not Applicable,
Department for Business Energy and Industrial Strategy,Intellectual Property Office,11/10/2016,Network and infrastructure H/W,IT Directorate,Tesco Store 2931,H57720161013ctqeydpih,3.00,Not Applicable,
Department for Business Energy and Industrial Strategy,Intellectual Property Office,11/10/2016,Network and infrastructure H/W,IT Directorate,Thepihut,H57720161013gokcefnry,29.50,Not Applicable,
Department for Business Energy and Industrial Strategy,Intellectual Property Office,07/10/2016,Books,IT Directorate,Amazon UK Retail,H57720161011dxpbwabtd,30.98,Not Applicable,
Department for Business Energy and Industrial Strategy,Intellectual Property Office,06/10/2016,Network and infrastructure H/W,IT Directorate,Www.Thecookscupboard.C,H57720161008hxvojuozg,33.50,Not Applicable,
Department for Business Energy and Industrial Strategy,Intellectual Property Office,06/10/2016,Network and infrastructure H/W,IT Directorate,Marks&spencer Plc Saca,H57720161008hymofnkbi,72.00,Not Applicable,
Department for Business Energy and Industrial Strategy,Intellectual Property Office,06/10/2016,Network and infrastructure H/W,IT Directorate,W M Morrison Plc,H57720161008tehbzgtjz,150.00,Not Applicable,
Department for Business Energy and Industrial Strategy,Intellectual Property Office,05/10/2016,Network and infrastructure H/W,IT Directorate,Amazon UK Marketplace,H57720161007wgoohdkwl,9.05,Not Applicable,
Department for Business Energy and Industrial Strategy,Intellectual Property Office,27/10/2016,Office Stationery,Finance Directorate,Buyabattery Co Uk,H57720161031ykcjpncxd,15.99,Not Applicable,
Department for Business Energy and Industrial Strategy,Intellectual Property Office,26/10/2016,Career Development Services,IT Directorate,Business Arch Assoc,H57720161028tbcmwvlzr,1143.59,Not Applicable,
Department for Business Energy and Industrial Strategy,Intellectual Property Office,25/10/2016,Books Newspaper Pub(central),Patent Directorate,Subs-Service.Co.Uk,H57720161027avkaibcif,1500.00,Not Applicable,
Department for Business Energy and Industrial Strategy,Intellectual Property Office,25/10/2016,Office Stationery,Finance Directorate,Cartridge Save,H57720161027guxqpthtg,697.15,Not Applicable,
Department for Business Energy and Industrial Strategy,Intellectual Property Office,25/10/2016,Career Development Services,IT Directorate,Paypal,H57720161027unmbxsoob,2535.00,Not Applicable,
Department for Business Energy and Industrial Strategy,Intellectual Property Office,25/10/2016,Inta Community VAT,Trade Mark Directorate,Paypal,H57720161027unmbxsoob,507.00,Not Applicable,
Department for Business Energy and Industrial Strategy,Intellectual Property Office,25/10/2016,Office Stationery,Finance Directorate,Xma Ltd,H57720161027hsuynnxer,96.50,Not Applicable,
Department for Business Energy and Industrial Strategy,Intellectual Property Office,24/10/2016,Office Stationery,Finance Directorate,Xma Ltd,H57720161026dcejpjqmy,137.26,Not Applicable,
Department for Business Energy and Industrial Strategy,Intellectual Property Office,20/10/2016,Career Development Services,IT Directorate,Stayahead Training,H57720161024hbkwsoowa,1320.00,Not Applicable,
Department for Business Energy and Industrial Strategy,Intellectual Property Office,19/10/2016,Office Stationery,Finance Directorate,Xma Ltd,H57720161021gjhhifoln,319.92,Not Applicable,
Department for Business Energy and Industrial Strategy,Intellectual Property Office,19/10/2016,Office Stationery,Finance Directorate,Xma Ltd,H57720161021tomonwqbh,272.42,Not Applicable,
Department for Business Energy and Industrial Strategy,Intellectual Property Office,18/10/2016,Office Stationery,Finance Directorate,Xma Ltd,H57720161020bfsdebhzk,35.39,Not Applicable,
Department for Business Energy and Industrial Strategy,Intellectual Property Office,18/10/2016,Career Development Services,Patent Directorate,Www.Epo.Org,H57720161020tsrmkhtsk,549.14,Not Applicable,
Department for Business Energy and Industrial Strategy,Intellectual Property Office,18/10/2016,Career Development Services,Patent Directorate,Www.Epo.Org,H57720161020ogzvslmah,549.14,Not Applicable,
Department for Business Energy and Industrial Strategy,Intellectual Property Office,17/10/2016,Books Newspaper Pub(central),Patent Directorate,Subs-Service.Co.Uk,H57720161019tacrodngp,80.00,Not Applicable,
Department for Business Energy and Industrial Strategy,Intellectual Property Office,10/10/2016,Office Stationery,Finance Directorate,Xma Ltd,H57720161012hhbyqmeyr,78.74,Not Applicable,
Department for Business Energy and Industrial Strategy,Intellectual Property Office,04/10/2016,Books Newspaper Pub(central),Patent Directorate,Rbi Qss Subs,H57720161008qrywpbxgq,145.00,Not Applicable,
Department for Business Energy and Industrial Strategy,Intellectual Property Office,06/10/2016,Office Stationery,Finance Directorate,Gigant Products For In,H57720161008vzwteilbi,96.51,Not Applicable,
Department for Business Energy and Industrial Strategy,Intellectual Property Office,05/10/2016,Office Stationery,Finance Directorate,Xma Ltd,H57720161007wnwvqjifo,131.21,Not Applicable,
Department for Business Energy and Industrial Strategy,Intellectual Property Office,03/10/2016,Office Stationery,Finance Directorate,Xma Ltd,H57720161005udxwnejjy,74.28,Not Applicable,
Department for Business Energy and Industrial Strategy,Intellectual Property Office,30/09/2016,Career Development Services,IT Directorate,Stayahead Training,H57720161004hgtcepjaw,4068.00,Not Applicable,
Department for Business Energy and Industrial Strategy,Intellectual Property Office,30/09/2016,Career Development Services,IT Directorate,Stayahead Training,H57720161004swystbrph,1320.00,Not Applicable,
Department for Business Energy and Industrial Strategy,Intellectual Property Office,20/10/2016,Perpetual Licences,IT Directorate,Dri Win Rar Gmbh,H57720161025tqvnjxoxo,54.24,Not Applicable,
Department for Business Energy and Industrial Strategy,Intellectual Property Office,17/10/2016,Perpetual Licences,IT Directorate,Meetingzone Ltd,H57720161019imxwioshb,492.48,Not Applicable,
Department for Business Energy and Industrial Strategy,Intellectual Property Office,12/10/2016,Perpetual Licences,IT Directorate,Clicdataeu,H57720161014zymloqtlt,25.56,Not Applicable,
Department for Business Energy and Industrial Strategy,Intellectual Property Office,13/10/2016,Overseas Patent Specifications,Patent Directorate,Www.Sgm.Co.Uk,H57720161020uwoclgkmj,27.00,Not Applicable,
Department for Business Energy and Industrial Strategy,Intellectual Property Office,04/10/2016,Overseas Patent Specifications,Patent Directorate,Tcd*thomsonreuters-Ips,H57720161006qemvgzvll,40.42,Not Applicable,
Department for Business Energy and Industrial Strategy,Intellectual Property Office,25/10/2016,Office Stationery,People Places & Serv Direct,Business Ind Solutions,H57720161027pwemjkkyw,16.75,Not Applicable,
Department for Business Energy and Industrial Strategy,Intellectual Property Office,25/10/2016,Office Stationery,People Places & Serv Direct,"Amazon Svcs Europe,sar",H57720161027xgpvzgkgc,82.88,Not Applicable,
Department for Business Energy and Industrial Strategy,Intellectual Property Office,12/10/2016,Office Stationery,People Places & Serv Direct,Screwfix Direct,H57720161014okscxente,82.40,Not Applicable,
Department for Business Energy and Industrial Strategy,Intellectual Property Office,12/10/2016,Occupational Health Services,People Places & Serv Direct,Healthy Workstations Ltd,H57720161014xasqokkpo,94.80,Not Applicable,
Department for Business Energy and Industrial Strategy,Intellectual Property Office,12/10/2016,Office Stationery,People Places & Serv Direct,B & Q 1300,H57720161014zpfygvtqx,56.00,Not Applicable,
Department for Business Energy and Industrial Strategy,Intellectual Property Office,10/10/2016,Office Stationery,People Places & Serv Direct,Safetysuppl,H57720161012nmosnrrcl,24.09,Not Applicable,
Department for Business Energy and Industrial Strategy,Intellectual Property Office,03/10/2016,Minor Works-Goods,People Places & Serv Direct,Screwfix Direct,H57720161005ltqquefgu,379.80,Not Applicable,
Department for Business Energy and Industrial Strategy,Intellectual Property Office,22/09/2016,Office Stationery,People Places & Serv Direct,Rs Components,H57720161004yorzlwudj,264.84,Not Applicable,
Department for Business Energy and Industrial Strategy,Intellectual Property Office,30/09/2016,Office Stationery,People Places & Serv Direct,Trunki Magmatic,H57720161004zsyxjnjio,148.96,Not Applicable,
Department for Business Energy and Industrial Strategy,Intellectual Property Office,10/10/2016,Office Stationery,Finance Directorate,Tesco-Stores 6459,H57720161012wzlktccjo,26.00,Not Applicable,
Department for Business Energy and Industrial Strategy,Intellectual Property Office,29/10/2016,Minor Works-Goods,People Places & Serv Direct,Tg Howell,H57720161101mfgflegyi,151.56,Not Applicable,
Department for Business Energy and Industrial Strategy,Intellectual Property Office,28/10/2016,Minor Works-Goods,People Places & Serv Direct,Screwfix Direct,H57720161101gkzvedruj,64.56,Not Applicable,
Department for Business Energy and Industrial Strategy,Intellectual Property Office,24/10/2016,Office Stationery,People Places & Serv Direct,Amazon UK Marketplace,H57720161026pcuepnsqk,32.77,Not Applicable,
Department for Business Energy and Industrial Strategy,Intellectual Property Office,20/10/2016,Office Stationery,People Places & Serv Direct,Tesco Direct,H57720161024rtmptnept,64.95,Not Applicable,
Department for Business Energy and Industrial Strategy,Intellectual Property Office,18/10/2016,Minor Works-Goods,People Places & Serv Direct,The Colour Centre,H57720161020kiswihdkd,314.40,Not Applicable,
Department for Business Energy and Industrial Strategy,Intellectual Property Office,18/10/2016,Minor Works-Goods,People Places & Serv Direct,Screwfix Direct,H57720161020ybeegqzug,51.32,Not Applicable,
Department for Business Energy and Industrial Strategy,Intellectual Property Office,15/10/2016,Office Stationery,People Places & Serv Direct,Screwfix Direct,H57720161018lelcigbcx,200.94,Not Applicable,
Department for Business Energy and Industrial Strategy,Intellectual Property Office,14/10/2016,Office Stationery,People Places & Serv Direct,Tesco Direct,H57720161018cujnkfcwb,49.00,Not Applicable,
Department for Business Energy and Industrial Strategy,Intellectual Property Office,14/10/2016,Office Stationery,People Places & Serv Direct,Xl Displays Ltd,H57720161018gqbpcsjyg,411.60,Not Applicable,
Department for Business Energy and Industrial Strategy,Intellectual Property Office,12/10/2016,Minor Works-Goods,People Places & Serv Direct,Amazon UK Marketplace,H57720161014jijtcubos,12.00,Not Applicable,
Department for Business Energy and Industrial Strategy,Intellectual Property Office,06/10/2016,Office Stationery,People Places & Serv Direct,Ring O Roses,H57720161008tjsbbntkq,80.00,Not Applicable,
Department for Business Energy and Industrial Strategy,Intellectual Property Office,05/10/2016,Office Stationery,People Places & Serv Direct,Currys S/s,H57720161007ecgbhyqrk,129.98,Not Applicable,
Department for Business Energy and Industrial Strategy,Intellectual Property Office,05/10/2016,Minor Works-Goods,People Places & Serv Direct,Screwfix Direct,H57720161007fbwuxawtr,44.90,Not Applicable,
Department for Business Energy and Industrial Strategy,Intellectual Property Office,18/10/2016,Perpetual Licences,IT Directorate,Dri*,H57720161020hqchorwub,46.45,Not Applicable,
Department for Business Energy and Industrial Strategy,Intellectual Property Office,10/10/2016,Books,IT Directorate,Www.Magicwhitebaord.Co.U,H57720161012yrwhyvgnc,40.94,Not Applicable,
Department for Business Energy and Industrial Strategy,Intellectual Property Office,30/09/2016,Misc Innovation Support,Copyright and Enforcement Directorate,Www.Staples.Co.Uk,H57720161004ninstvgis,37.55,Not Applicable,
Department for Business Energy and Industrial Strategy,Intellectual Property Office,07/10/2016,Advertising Distribution,Innovation Directorate,Twitonomy.Com,H57720161011hvjrionnv,16.16,Not Applicable,
Department for Business Energy and Industrial Strategy,Intellectual Property Office,04/10/2016,Advertising Distribution,Innovation Directorate,Paypal,H57720161007zblqfqflk,489.60,Not Applicable,
Department for Business Energy and Industrial Strategy,Intellectual Property Office,17/10/2016,Network and infrastructure H/W,IT Directorate,Amazon UK Retail,H57720161019opelancbj,-333.15,Not Applicable,
Department for Business Energy and Industrial Strategy,Intellectual Property Office,10/10/2016,Network and infrastructure H/W,IT Directorate,Amazon UK Retail,H57720161012zqbgbfwgq,333.15,Not Applicable,
Department for Business Energy and Industrial Strategy,Intellectual Property Office,06/10/2016,Network and infrastructure H/W,IT Directorate,Amazon UK Retail,H57720161008fjzztgtfm,279.98,Not Applicable,
Department for Business Energy and Industrial Strategy,Intellectual Property Office,05/10/2016,Network and infrastructure H/W,IT Directorate,Amazon UK Marketplace,H57720161007skcomomkm,12.36,Not Applicable,
Department for Business Energy and Industrial Strategy,Intellectual Property Office,05/10/2016,Network and infrastructure H/W,IT Directorate,Amazon UK Marketplace,H57720161007ujfvixehq,34.95,Not Applicable,
Department for Business Energy and Industrial Strategy,Intellectual Property Office,26/10/2016,T&S UK,Patent Directorate,Nec Parking,H57720161028bdbnrosnf,40.00,Not Applicable,
Department for Business Energy and Industrial Strategy,Intellectual Property Office,26/10/2016,T&S UK,Patent Directorate,Nec Parking,H57720161028fnjpvfhre,20.00,Not Applicable,
Department for Business Energy and Industrial Strategy,Intellectual Property Office,20/10/2016,Career Development Services,Patent Directorate,Wp-Iee Events,H57720161024mtmgwaksw,658.80,Not Applicable,
Department for Business Energy and Industrial Strategy,Intellectual Property Office,20/10/2016,Career Development Services,Patent Directorate,Wp-Iee Events,H57720161024sdchnrlpe,538.80,Not Applicable,
Department for Business Energy and Industrial Strategy,Intellectual Property Office,06/10/2016,T&S UK,Patent Directorate,Bus Ticket Or Emt Wifi,H57720161008gdjzfybhs,10.50,Not Applicable,
Department for Business Energy and Industrial Strategy,Intellectual Property Office,26/10/2016,Books,Innovation Directorate,Times Newspapers Ltd,H57720161031dtfntzzhq,26.00,Not Applicable,
Department for Business Energy and Industrial Strategy,Intellectual Property Office,20/10/2016,Office Stationery,Finance Directorate,Cartridge Save,H57720161024mwbqykxhx,904.90,Not Applicable,
Department for Business Energy and Industrial Strategy,Intellectual Property Office,25/10/2016,Entertainment,Trade Mark Directorate,Marksandspencer.Co,H57720161027muvhqeqnx,99.19,Not Applicable,
Department for Business Energy and Industrial Strategy,Intellectual Property Office,18/10/2016,Entertainment,Trade Mark Directorate,Poundland Ltd 1289,H57720161020ciajeabkb,38.30,Not Applicable,
Department for Business Energy and Industrial Strategy,Intellectual Property Office,18/10/2016,Entertainment,Trade Mark Directorate,B&m Retail Ltd,H57720161020inpdrvuvw,28.05,Not Applicable,
Department for Business Energy and Industrial Strategy,Intellectual Property Office,18/10/2016,Entertainment,Trade Mark Directorate,B&m Retail Ltd,H57720161020lnpwimner,5.94,Not Applicable,
Department for Business Energy and Industrial Strategy,Intellectual Property Office,19/10/2016,Network and infrastructure H/W,IT Directorate,Cdi Group Ltd,H57720161024npzyuidfc,96.98,Not Applicable,
Department for Business Energy and Industrial Strategy,Intellectual Property Office,03/10/2016,Perpetual Licences,IT Directorate,Websitepulse.Com,H57720161006plwlkytsj,74.30,Not Applicable,
Department for Business Energy and Industrial Strategy,Intellectual Property Office,26/10/2016,T&S O-seas excl EPOQUE,Patent Directorate,Convencion 2000,H57720161028ixknuugsa,101.54,Not Applicable,
Department for Business Energy and Industrial Strategy,Intellectual Property Office,26/10/2016,T&S O-seas excl EPOQUE,Patent Directorate,Convencion 2000,H57720161028xtjwtfztu,101.54,Not Applicable,
Department for Business Energy and Industrial Strategy,Intellectual Property Office,21/10/2016,Books,Trade Mark Directorate,The Intellectual Property,H57720161025hlnrnhimd,50.00,Not Applicable,
Department for Business Energy and Industrial Strategy,Intellectual Property Office,04/10/2016,CIMS Printing,Patent Directorate,The Intellectual Property,H57720161006accvnmckn,-5.00,Not Applicable,
Department for Business Energy and Industrial Strategy,Intellectual Property Office,04/10/2016,CIMS Printing,Patent Directorate,The Intellectual Property,H57720161006sobubdbdx,-30.00,Not Applicable,
Department for Business Energy and Industrial Strategy,Intellectual Property Office,04/10/2016,CIMS Printing,Patent Directorate,The Intellectual Property,H57720161006vqeodkbug,-20.00,Not Applicable,
Department for Business Energy and Industrial Strategy,Intellectual Property Office,04/10/2016,Entertainment,People Places & Serv Direct,Paypal,H57720161006fdejwqaly,24.95,Not Applicable,
Department for Business Energy and Industrial Strategy,Intellectual Property Office,24/10/2016,Perpetual Licences,Projects,Cloudflare,H57720161027mltktesxa,187.47,Not Applicable,
Department for Business Energy and Industrial Strategy,Intellectual Property Office,14/10/2016,Software Maintenance,IT Directorate,Speech Empowered,H57720161018wggtilqba,369.12,Not Applicable,
Department for Business Energy and Industrial Strategy,Intellectual Property Office,12/10/2016,Software Maintenance,IT Directorate,Amazon UK Marketplace,H57720161014yyojhitsg,16.57,Not Applicable,
Department for Business Energy and Industrial Strategy,Intellectual Property Office,05/10/2016,Software Maintenance,IT Directorate,Medius Cisco Mrktplace,H57720161007xoyanmwcv,89.29,Not Applicable,
Department for Business Energy and Industrial Strategy,Intellectual Property Office,03/10/2016,Software Maintenance,IT Directorate,Medius Cisco Mrktplace,H57720161005opsrhnkfb,88.19,Not Applicable,
Department for Business Energy and Industrial Strategy,Intellectual Property Office,10/10/2016,Career Development Services,People Places & Serv Direct,Vanguard Consultin,H57720161012wscirlggs,180.00,Not Applicable,
Department for Business Energy and Industrial Strategy,Intellectual Property Office,27/10/2016,Office Stationery,People Places & Serv Direct,Amazon UK Marketplace,H57720161031ysopwtdzn,2.82,Not Applicable,
Department for Business Energy and Industrial Strategy,Intellectual Property Office,27/10/2016,Office Stationery,People Places & Serv Direct,Amazon UK Marketplace,H57720161031momwvlfsl,5.77,Not Applicable,
Department for Business Energy and Industrial Strategy,Intellectual Property Office,25/10/2016,Office Stationery,People Places & Serv Direct,Screwfix Direct,H57720161027gluvhcvrb,127.77,Not Applicable,
Department for Business Energy and Industrial Strategy,Intellectual Property Office,25/10/2016,Office Stationery,People Places & Serv Direct,The Colour Centre,H57720161027kvkjgxhfw,377.28,Not Applicable,
Department for Business Energy and Industrial Strategy,Intellectual Property Office,25/10/2016,Office Stationery,People Places & Serv Direct,"Amazon Svcs Europe,sar",H57720161027pugxofumb,-9.87,Not Applicable,
Department for Business Energy and Industrial Strategy,Intellectual Property Office,24/10/2016,Office Stationery,People Places & Serv Direct,Hse Books (Internet),H57720161026gsdhsejsp,25.00,Not Applicable,
Department for Business Energy and Industrial Strategy,Intellectual Property Office,21/10/2016,Office Stationery,People Places & Serv Direct,"Amazon Svcs Europe,sar",H57720161025isubpuqnh,9.87,Not Applicable,
Department for Business Energy and Industrial Strategy,Intellectual Property Office,19/10/2016,Office Stationery,People Places & Serv Direct,Nukey,H57720161021dnxnuqoqn,15.60,Not Applicable,
Department for Business Energy and Industrial Strategy,Intellectual Property Office,14/10/2016,Office Stationery,People Places & Serv Direct,Amazon UK Marketplace,H57720161018vgbbughlw,31.92,Not Applicable,
Department for Business Energy and Industrial Strategy,Intellectual Property Office,13/10/2016,Office Stationery,People Places & Serv Direct,Amazon UK Marketplace,H57720161015tfunuuqzh,8.49,Not Applicable,
Department for Business Energy and Industrial Strategy,Intellectual Property Office,12/10/2016,Office Stationery,People Places & Serv Direct,Careco.Co.Uk,H57720161014nghyfcywy,229.95,Not Applicable,
Department for Business Energy and Industrial Strategy,Intellectual Property Office,12/10/2016,Office Stationery,People Places & Serv Direct,Amazon UK Marketplace,H57720161014ofusmxklw,52.00,Not Applicable,
Department for Business Energy and Industrial Strategy,Intellectual Property Office,03/10/2016,Office Stationery,People Places & Serv Direct,Amazon UK Marketplace,H57720161005ygyqthjsj,103.16,Not Applicable,
Department for Business Energy and Industrial Strategy,Intellectual Property Office,05/10/2016,Perpetual Licences,Projects,Ryness Electrical Supp,H57720161007xcigybmtc,14.97,Not Applicable,
Department for Business Energy and Industrial Strategy,Intellectual Property Office,05/10/2016,Entertainment,Projects,Marksandspencer.Co,H57720161007xewqxutpl,53.54,Not Applicable,
Department for Business Energy and Industrial Strategy,Intellectual Property Office,10/10/2016,Office Stationery,People Places & Serv Direct,Aspli Safety Equip,H57720161012xszxvsnda,48.67,Not Applicable,
Department for Business Energy and Industrial Strategy,Intellectual Property Office,02/10/2016,Office Stationery,People Places & Serv Direct,Screwfix Direct,H57720161004uyzboulaw,32.80,Not Applicable,
Department for Business Energy and Industrial Strategy,Intellectual Property Office,29/10/2016,Career Development Services,IT Directorate,Trello,H57720161101sapwshcnv,25.50,Not Applicable,
Department for Business Energy and Industrial Strategy,Intellectual Property Office,17/10/2016,Career Development Services,IT Directorate,Paypal,H57720161020klticpiij,2.79,Not Applicable,
Department for Business Energy and Industrial Strategy,Intellectual Property Office,26/10/2016,Seminars and Confereces,People Places & Serv Direct,Swift Hart Boxes,H57720161028hixiqcfpg,57.79,Not Applicable,
Department for Business Energy and Industrial Strategy,Intellectual Property Office,25/10/2016,Seminars and Confereces,People Places & Serv Direct,Amazon UK Marketplace,H57720161027zyfsbmaev,7.58,Not Applicable,
Department for Business Energy and Industrial Strategy,Intellectual Property Office,25/10/2016,Seminars and Confereces,People Places & Serv Direct,Amazon UK Marketplace,H57720161027lqxcoykko,3.96,Not Applicable,
Department for Business Energy and Industrial Strategy,Intellectual Property Office,25/10/2016,Office Stationery,People Places & Serv Direct,Tesco-Stores 6225,H57720161027zidgnsequ,28.00,Not Applicable,
Department for Business Energy and Industrial Strategy,Intellectual Property Office,19/10/2016,Seminars and Confereces,People Places & Serv Direct,Tesco-Stores 6459,H57720161021lashgaskx,60.00,Not Applicable,
Department for Business Energy and Industrial Strategy,Intellectual Property Office,18/10/2016,Seminars and Confereces,People Places & Serv Direct,Swift Hart Boxes,H57720161020wjxsxunbf,48.41,Not Applicable,
Department for Business Energy and Industrial Strategy,Intellectual Property Office,17/10/2016,Office Stationery,People Places & Serv Direct,Thorntons,H57720161019bhtexhsbz,47.00,Not Applicable,
Department for Business Energy and Industrial Strategy,Intellectual Property Office,17/10/2016,Seminars and Confereces,People Places & Serv Direct,Tesco Stores 2931,H57720161019jdowqybwe,20.00,Not Applicable,
Department for Business Energy and Industrial Strategy,Intellectual Property Office,16/10/2016,Seminars and Confereces,People Places & Serv Direct,Przcharge.Prezi.Com,H57720161018fdrrzderf,15.60,Not Applicable,
Department for Business Energy and Industrial Strategy,Intellectual Property Office,12/10/2016,Office Stationery,People Places & Serv Direct,Amazon UK Marketplace,H57720161014degdnramz,6.38,Not Applicable,
Department for Business Energy and Industrial Strategy,Intellectual Property Office,10/10/2016,Seminars and Confereces,People Places & Serv Direct,Tesco Stores 2931,H57720161012jfbzimdao,20.00,Not Applicable,
Department for Business Energy and Industrial Strategy,Intellectual Property Office,09/10/2016,Seminars and Confereces,People Places & Serv Direct,Tesco-Stores 6459,H57720161011wpvoufzxf,22.98,Not Applicable,
Department for Business Energy and Industrial Strategy,Intellectual Property Office,03/10/2016,Seminars and Confereces,People Places & Serv Direct,Tip Top Wedding Shop Limi,H57720161005eisycecxw,51.71,Not Applicable,
Department for Business Energy and Industrial Strategy,Intellectual Property Office,03/10/2016,Seminars and Confereces,People Places & Serv Direct,Coveritlive Scribbl,H57720161005gihmfvryx,39.29,Not Applicable,
Department for Business Energy and Industrial Strategy,Intellectual Property Office,01/10/2016,Career Development Services,People Places & Serv Direct,Subway,H57720161004bfnipiekz,67.99,Not Applicable,
Department for Business Energy and Industrial Strategy,Intellectual Property Office,01/10/2016,Career Development Services,People Places & Serv Direct,Asda Superstore 4928,H57720161004lpufjcpcn,7.84,Not Applicable,
Department for Business Energy and Industrial Strategy,Intellectual Property Office,12/10/2016,Travel & Subsistence,Copyright & Enforcement Directorate,Personal expenses,UK000000152,18.54,Not Applicable,
Department for Business Energy and Industrial Strategy,Intellectual Property Office,19/10/2016,Travel & Subsistence,Copyright & Enforcement Directorate,Personal expenses,UK000000317,28.29,Not Applicable,
Department for Business Energy and Industrial Strategy,Intellectual Property Office,05/10/2016,Travel & Subsistence,Copyright & Enforcement Directorate,Personal expenses,UK000000242,15.69,Not Applicable,
Department for Business Energy and Industrial Strategy,Intellectual Property Office,27/10/2016,Travel & Subsistence,Copyright & Enforcement Directorate,Personal expenses,UK000000356,22.39,Not Applicable,
Department for Business Energy and Industrial Strategy,Intellectual Property Office,05/10/2016,Travel & Subsistence,Copyright & Enforcement Directorate,Personal expenses,UK000000237,25.00,Not Applicable,
Department for Business Energy and Industrial Strategy,Intellectual Property Office,05/10/2016,Travel & Subsistence,Copyright & Enforcement Directorate,Personal expenses,UK000000233,4.80,Not Applicable,
Department for Business Energy and Industrial Strategy,Intellectual Property Office,24/10/2016,Travel & Subsistence,Copyright & Enforcement Directorate,Personal expenses,UK000000351,58.59,Not Applicable,
Department for Business Energy and Industrial Strategy,Intellectual Property Office,21/10/2016,Travel & Subsistence,Copyright & Enforcement Directorate,Personal expenses,OS000000071,93.29,Not Applicable,
Department for Business Energy and Industrial Strategy,Intellectual Property Office,05/10/2016,Travel & Subsistence,Copyright & Enforcement Directorate,Personal expenses,UK000000187,10.80,Not Applicable,
Department for Business Energy and Industrial Strategy,Intellectual Property Office,05/10/2016,Travel & Subsistence,Copyright & Enforcement Directorate,Personal expenses,OS000000056,108.77,Not Applicable,
Department for Business Energy and Industrial Strategy,Intellectual Property Office,05/10/2016,Travel & Subsistence,Copyright & Enforcement Directorate,Personal expenses,UK000000238,13.80,Not Applicable,
Department for Business Energy and Industrial Strategy,Intellectual Property Office,03/10/2016,Travel & Subsistence,Copyright & Enforcement Directorate,Personal expenses,UK000000225,22.32,Not Applicable,
Department for Business Energy and Industrial Strategy,Intellectual Property Office,27/10/2016,Travel & Subsistence,Copyright & Enforcement Directorate,Personal expenses,UK000000300,10.00,Not Applicable,
Department for Business Energy and Industrial Strategy,Intellectual Property Office,05/10/2016,Travel & Subsistence,Copyright & Enforcement Directorate,Personal expenses,OS000000054,88.53,Not Applicable,
Department for Business Energy and Industrial Strategy,Intellectual Property Office,05/10/2016,Travel & Subsistence,Copyright & Enforcement Directorate,Personal expenses,OS000000055,74.68,Not Applicable,
Department for Business Energy and Industrial Strategy,Intellectual Property Office,06/10/2016,Travel & Subsistence,Copyright & Enforcement Directorate,Personal expenses,UK000000229,64.50,Not Applicable,
Department for Business Energy and Industrial Strategy,Intellectual Property Office,21/10/2016,Travel & Subsistence,Copyright & Enforcement Directorate,Personal expenses,UK000000336,12.70,Not Applicable,
Department for Business Energy and Industrial Strategy,Intellectual Property Office,03/10/2016,Travel & Subsistence,Copyright & Enforcement Directorate,Personal expenses,UK000000206,2.00,Not Applicable,
Department for Business Energy and Industrial Strategy,Intellectual Property Office,03/10/2016,Travel & Subsistence,Copyright & Enforcement Directorate,Personal expenses,UK000000154,195.40,Not Applicable,
Department for Business Energy and Industrial Strategy,Intellectual Property Office,19/10/2016,Travel & Subsistence,Copyright & Enforcement Directorate,Personal expenses,UK000000312,31.00,Not Applicable,
Department for Business Energy and Industrial Strategy,Intellectual Property Office,27/10/2016,Travel & Subsistence,Copyright & Enforcement Directorate,Personal expenses,UK000000373,31.30,Not Applicable,
Department for Business Energy and Industrial Strategy,Intellectual Property Office,13/10/2016,Travel & Subsistence,Copyright & Enforcement Directorate,Personal expenses,UK000000282,8.00,Not Applicable,
Department for Business Energy and Industrial Strategy,Intellectual Property Office,06/10/2016,Supporting UK Business,Copyright & Enforcement Directorate,Alliance IP Training,IPO-004-2016,432.00,Not Applicable,
Department for Business Energy and Industrial Strategy,Intellectual Property Office,26/10/2016,Supporting UK Business,Copyright & Enforcement Directorate,City of London Police,4183174,587533.70,Not Applicable,
Department for Business Energy and Industrial Strategy,Intellectual Property Office,06/10/2016,Supporting UK Business,Copyright & Enforcement Directorate,Companies House,263663459,7.00,Not Applicable,
Department for Business Energy and Industrial Strategy,Intellectual Property Office,03/10/2016,Travel & Subsistence,Copyright & Enforcement Directorate,Zenith,RHI01633935,107.09,Not Applicable,
Department for Business Energy and Industrial Strategy,Intellectual Property Office,06/10/2016,Travel & Subsistence,Copyright & Enforcement Directorate,Zenith,RHI01635507,110.38,Not Applicable,
Department for Business Energy and Industrial Strategy,Intellectual Property Office,10/10/2016,Travel & Subsistence,Copyright & Enforcement Directorate,Zenith,RHI01635510,53.54,Not Applicable,
Department for Business Energy and Industrial Strategy,Intellectual Property Office,10/10/2016,Travel & Subsistence,Copyright & Enforcement Directorate,Zenith,RHI01637319,58.48,Not Applicable,
Department for Business Energy and Industrial Strategy,Intellectual Property Office,14/10/2016,Travel & Subsistence,Copyright & Enforcement Directorate,Zenith,RHI01638275,107.09,Not Applicable,
Department for Business Energy and Industrial Strategy,Intellectual Property Office,05/10/2016,Travel & Subsistence,Copyright & Enforcement Directorate,Veezu Ltd T/A Dragon Taxis (Newport),1274,64.20,Not Applicable,
Department for Business Energy and Industrial Strategy,Intellectual Property Office,05/10/2016,Travel & Subsistence,Copyright & Enforcement Directorate,Veezu Ltd T/A Dragon Taxis (Newport),1274,36.60,Not Applicable,
Department for Business Energy and Industrial Strategy,Intellectual Property Office,05/10/2016,Supporting UK Business,Copyright & Enforcement Directorate,Experian Ltd,IEX3001800666,207.90,Not Applicable,
Department for Business Energy and Industrial Strategy,Intellectual Property Office,28/10/2016,Pay Costs,Copyright & Enforcement Directorate,Police & Crime Commissioner Sussex,1800038647,2714.47,Not Applicable,
Department for Business Energy and Industrial Strategy,Intellectual Property Office,06/10/2016,Pay Costs,Copyright & Enforcement Directorate,HM REVENUE AND CUSTOMS,XD006727045975,745.43,Not Applicable,
Department for Business Energy and Industrial Strategy,Intellectual Property Office,06/10/2016,Legal & Hearings,Copyright & Enforcement Directorate,HM REVENUE AND CUSTOMS,XG006627041319,1401.70,Not Applicable,
Department for Business Energy and Industrial Strategy,Intellectual Property Office,03/10/2016,Staff Costs,Copyright & Enforcement Directorate,Bridgeman Training,IPO003,275.00,Not Applicable,
Department for Business Energy and Industrial Strategy,Intellectual Property Office,05/10/2016,Office Supplies,Finance Directorate,Banner  Business Supplies Ltd,32358372,1161.04,Not Applicable,
Department for Business Energy and Industrial Strategy,Intellectual Property Office,04/10/2016,Legal & Hearings,Finance Directorate,Department For Business Innovation & Ski,6.1511E+11,166250.00,Not Applicable,
Department for Business Energy and Industrial Strategy,Intellectual Property Office,17/10/2016,Misc Expenses Finance,Finance Directorate,G4S Cash Services (UK) Ltd,1987187,575.26,Not Applicable,
Department for Business Energy and Industrial Strategy,Intellectual Property Office,05/10/2016,Travel & Subsistence,Finance Directorate,Veezu Ltd T/A Dragon Taxis (Newport),1274,49.20,Not Applicable,
Department for Business Energy and Industrial Strategy,Intellectual Property Office,10/10/2016,Office Supplies,Finance Directorate,Antalis,6216279,74.04,Not Applicable,
Department for Business Energy and Industrial Strategy,Intellectual Property Office,05/10/2016,Office Supplies,Finance Directorate,Antalis,6219337,2619.61,Not Applicable,
Department for Business Energy and Industrial Strategy,Intellectual Property Office,19/10/2016,Office Supplies,Finance Directorate,Antalis,6224394,159.06,Not Applicable,
Department for Business Energy and Industrial Strategy,Intellectual Property Office,14/10/2016,Office Supplies,Finance Directorate,Antalis,6224395,624.00,Not Applicable,
Department for Business Energy and Industrial Strategy,Intellectual Property Office,24/10/2016,Office Supplies,Finance Directorate,Antalis,6253913,624.00,Not Applicable,
Department for Business Energy and Industrial Strategy,Intellectual Property Office,24/10/2016,Office Supplies,Finance Directorate,Antalis,6258128,624.00,Not Applicable,
Department for Business Energy and Industrial Strategy,Intellectual Property Office,12/10/2016,Office Supplies,Finance Directorate,Stamps Direct,CA341179,58.34,Not Applicable,
Department for Business Energy and Industrial Strategy,Intellectual Property Office,20/10/2016,Postage & Delivery Costs,Finance Directorate,RICO LOGISTICS LTD,833640,12.73,Not Applicable,
Department for Business Energy and Industrial Strategy,Intellectual Property Office,05/10/2016,Pay Costs,Finance Directorate,Accountancy Recruitment Wales,2273,590.03,Not Applicable,
Department for Business Energy and Industrial Strategy,Intellectual Property Office,14/10/2016,Pay Costs,Finance Directorate,Accountancy Recruitment Wales,2282,604.43,Not Applicable,
Department for Business Energy and Industrial Strategy,Intellectual Property Office,20/10/2016,Pay Costs,Finance Directorate,Accountancy Recruitment Wales,2292,374.17,Not Applicable,
Department for Business Energy and Industrial Strategy,Intellectual Property Office,27/10/2016,Pay Costs,Finance Directorate,Accountancy Recruitment Wales,2303,614.02,Not Applicable,
Department for Business Energy and Industrial Strategy,Intellectual Property Office,07/10/2016,Miscellaneous Expenses General,Finance Directorate,Dun & Bradstreet Ltd,1448871,45.50,Not Applicable,
Department for Business Energy and Industrial Strategy,Intellectual Property Office,06/10/2016,Pay Costs,Finance Directorate,HM REVENUE AND CUSTOMS,XD006727045975,2924.84,Not Applicable,
Department for Business Energy and Industrial Strategy,Intellectual Property Office,05/10/2016,Office Supplies,Finance Directorate,John MacLennan (T&IM) Ltd,52713,477.60,Not Applicable,
Department for Business Energy and Industrial Strategy,Intellectual Property Office,25/10/2016,Office Supplies,Finance Directorate,South East Drawing Office Ltd,10705,317.40,Not Applicable,
Department for Business Energy and Industrial Strategy,Intellectual Property Office,03/10/2016,Travel & Subsistence,Innovation Directorate,Personal expenses,UK000000228,188.20,Not Applicable,
Department for Business Energy and Industrial Strategy,Intellectual Property Office,12/10/2016,Travel & Subsistence,Innovation Directorate,Personal expenses,UK000000262,171.75,Not Applicable,
Department for Business Energy and Industrial Strategy,Intellectual Property Office,19/10/2016,Travel & Subsistence,Innovation Directorate,Personal expenses,UK000000308,124.43,Not Applicable,
Department for Business Energy and Industrial Strategy,Intellectual Property Office,20/10/2016,Travel & Subsistence,Innovation Directorate,Personal expenses,UK000000329,130.95,Not Applicable,
Department for Business Energy and Industrial Strategy,Intellectual Property Office,06/10/2016,Travel & Subsistence,Innovation Directorate,Personal expenses,UK000000250,132.04,Not Applicable,
Department for Business Energy and Industrial Strategy,Intellectual Property Office,19/10/2016,Travel & Subsistence,Innovation Directorate,Personal expenses,UK000000318,198.00,Not Applicable,
Department for Business Energy and Industrial Strategy,Intellectual Property Office,21/10/2016,Travel & Subsistence,Innovation Directorate,Personal expenses,UK000000342,19.80,Not Applicable,
Department for Business Energy and Industrial Strategy,Intellectual Property Office,07/10/2016,Travel & Subsistence,Innovation Directorate,Personal expenses,UK000000259,35.40,Not Applicable,
Department for Business Energy and Industrial Strategy,Intellectual Property Office,20/10/2016,Travel & Subsistence,Innovation Directorate,Personal expenses,UK000000333,29.74,Not Applicable,
Department for Business Energy and Industrial Strategy,Intellectual Property Office,03/10/2016,Travel & Subsistence,Innovation Directorate,Personal expenses,UK000000026,33.90,Not Applicable,
Department for Business Energy and Industrial Strategy,Intellectual Property Office,05/10/2016,Travel & Subsistence,Innovation Directorate,Personal expenses,UK000000195,66.43,Not Applicable,
Department for Business Energy and Industrial Strategy,Intellectual Property Office,07/10/2016,Travel & Subsistence,Innovation Directorate,Personal expenses,UK000000260,61.78,Not Applicable,
Department for Business Energy and Industrial Strategy,Intellectual Property Office,12/10/2016,Travel & Subsistence,Innovation Directorate,Personal expenses,UK000000268,59.63,Not Applicable,
Department for Business Energy and Industrial Strategy,Intellectual Property Office,19/10/2016,Travel & Subsistence,Innovation Directorate,Personal expenses,UK000000314,53.15,Not Applicable,
Department for Business Energy and Industrial Strategy,Intellectual Property Office,10/10/2016,Travel & Subsistence,Innovation Directorate,Personal expenses,UK000000171,23.45,Not Applicable,
Department for Business Energy and Industrial Strategy,Intellectual Property Office,21/10/2016,Travel & Subsistence,Innovation Directorate,Personal expenses,UK000000184,11.18,Not Applicable,
Department for Business Energy and Industrial Strategy,Intellectual Property Office,21/10/2016,Travel & Subsistence,Innovation Directorate,Personal expenses,UK000000348,10.95,Not Applicable,
Department for Business Energy and Industrial Strategy,Intellectual Property Office,18/10/2016,Travel & Subsistence,Innovation Directorate,Personal expenses,UK000000302,22.69,Not Applicable,
Department for Business Energy and Industrial Strategy,Intellectual Property Office,19/10/2016,Travel & Subsistence,Innovation Directorate,Personal expenses,UK000000304,60.76,Not Applicable,
Department for Business Energy and Industrial Strategy,Intellectual Property Office,19/10/2016,Travel & Subsistence,Innovation Directorate,Personal expenses,UK000000305,59.00,Not Applicable,
Department for Business Energy and Industrial Strategy,Intellectual Property Office,24/10/2016,Travel & Subsistence,Innovation Directorate,Personal expenses,UK000000266,119.10,Not Applicable,
Department for Business Energy and Industrial Strategy,Intellectual Property Office,06/10/2016,Travel & Subsistence,Innovation Directorate,Personal expenses,UK000000241,25.30,Not Applicable,
Department for Business Energy and Industrial Strategy,Intellectual Property Office,05/10/2016,Travel & Subsistence,Innovation Directorate,Personal expenses,UK000000212,5.00,Not Applicable,
Department for Business Energy and Industrial Strategy,Intellectual Property Office,12/10/2016,Travel & Subsistence,Innovation Directorate,Personal expenses,UK000000253,35.00,Not Applicable,
Department for Business Energy and Industrial Strategy,Intellectual Property Office,20/10/2016,Travel & Subsistence,Innovation Directorate,Personal expenses,UK000000328,6.00,Not Applicable,
Department for Business Energy and Industrial Strategy,Intellectual Property Office,07/10/2016,Travel & Subsistence,Innovation Directorate,Personal expenses,UK000000239,16.44,Not Applicable,
Department for Business Energy and Industrial Strategy,Intellectual Property Office,18/10/2016,Travel & Subsistence,Innovation Directorate,Personal expenses,UK000000307,50.00,Not Applicable,
Department for Business Energy and Industrial Strategy,Intellectual Property Office,03/10/2016,Travel & Subsistence,Innovation Directorate,Personal expenses,UK000000208,37.39,Not Applicable,
Department for Business Energy and Industrial Strategy,Intellectual Property Office,21/10/2016,Travel & Subsistence,Innovation Directorate,Personal expenses,UK000000339,9.49,Not Applicable,
Department for Business Energy and Industrial Strategy,Intellectual Property Office,27/10/2016,Travel & Subsistence,Innovation Directorate,Personal expenses,UK000000371,48.54,Not Applicable,
Department for Business Energy and Industrial Strategy,Intellectual Property Office,19/10/2016,Travel & Subsistence,Innovation Directorate,Personal expenses,UK000000232,9.06,Not Applicable,
Department for Business Energy and Industrial Strategy,Intellectual Property Office,18/10/2016,Travel & Subsistence,Innovation Directorate,Personal expenses,UK000000264,29.40,Not Applicable,
Department for Business Energy and Industrial Strategy,Intellectual Property Office,18/10/2016,Travel & Subsistence,Innovation Directorate,Personal expenses,UK000000293,10.95,Not Applicable,
Department for Business Energy and Industrial Strategy,Intellectual Property Office,21/10/2016,Travel & Subsistence,Innovation Directorate,Personal expenses,UK000000337,431.24,Not Applicable,
Department for Business Energy and Industrial Strategy,Intellectual Property Office,03/10/2016,Travel & Subsistence,Innovation Directorate,Personal expenses,OS000000048,129.37,Not Applicable,
Department for Business Energy and Industrial Strategy,Intellectual Property Office,18/10/2016,Travel & Subsistence,Innovation Directorate,Personal expenses,UK000000294,19.58,Not Applicable,
Department for Business Energy and Industrial Strategy,Intellectual Property Office,18/10/2016,Travel & Subsistence,Innovation Directorate,Personal expenses,UK000000295,14.39,Not Applicable,
Department for Business Energy and Industrial Strategy,Intellectual Property Office,06/10/2016,Travel & Subsistence,Innovation Directorate,Personal expenses,UK000000245,233.27,Not Applicable,
Department for Business Energy and Industrial Strategy,Intellectual Property Office,27/10/2016,Travel & Subsistence,Innovation Directorate,Personal expenses,UK000000366,209.26,Not Applicable,
Department for Business Energy and Industrial Strategy,Intellectual Property Office,13/10/2016,Travel & Subsistence,Innovation Directorate,Personal expenses,UK000000278,31.85,Not Applicable,
Department for Business Energy and Industrial Strategy,Intellectual Property Office,05/10/2016,Travel & Subsistence,Innovation Directorate,Personal expenses,UK000000243,39.03,Not Applicable,
Department for Business Energy and Industrial Strategy,Intellectual Property Office,05/10/2016,Travel & Subsistence,Innovation Directorate,Personal expenses,UK000000244,23.95,Not Applicable,
Department for Business Energy and Industrial Strategy,Intellectual Property Office,13/10/2016,Travel & Subsistence,Innovation Directorate,Personal expenses,UK000000270,105.16,Not Applicable,
Department for Business Energy and Industrial Strategy,Intellectual Property Office,14/10/2016,Travel & Subsistence,Innovation Directorate,Personal expenses,UK000000291,113.22,Not Applicable,
Department for Business Energy and Industrial Strategy,Intellectual Property Office,07/10/2016,Travel & Subsistence,Innovation Directorate,Personal expenses,UK000000252,12.59,Not Applicable,
Department for Business Energy and Industrial Strategy,Intellectual Property Office,20/10/2016,Travel & Subsistence,Innovation Directorate,Claudio Fassio,CF,61.55,Not Applicable,
Department for Business Energy and Industrial Strategy,Intellectual Property Office,17/10/2016,Supporting UK Business,Innovation Directorate,Creation IP Ltd,IV1180,2600.00,Not Applicable,
Department for Business Energy and Industrial Strategy,Intellectual Property Office,05/10/2016,Pay Costs,Innovation Directorate,Department For Business Innovation & Ski,6.1511E+11,12013.34,Not Applicable,
Department for Business Energy and Industrial Strategy,Intellectual Property Office,05/10/2016,Pay Costs,Innovation Directorate,Department For Business Innovation & Ski,6.1511E+11,9074.45,Not Applicable,
Department for Business Energy and Industrial Strategy,Intellectual Property Office,07/10/2016,Supporting UK Business,Innovation Directorate,Goldborough Studio Ltd,GSO0200,175.00,Not Applicable,
Department for Business Energy and Industrial Strategy,Intellectual Property Office,07/10/2016,Supporting UK Business,Innovation Directorate,IP Pragmatics,1768,2600.00,Not Applicable,
Department for Business Energy and Industrial Strategy,Intellectual Property Office,24/10/2016,Supporting UK Business,Innovation Directorate,IP Pragmatics,1785,2600.00,Not Applicable,
Department for Business Energy and Industrial Strategy,Intellectual Property Office,03/10/2016,Travel & Subsistence,Innovation Directorate,Zenith,RHI01630569,107.09,Not Applicable,
Department for Business Energy and Industrial Strategy,Intellectual Property Office,03/10/2016,Travel & Subsistence,Innovation Directorate,Zenith,RHI01632674,58.48,Not Applicable,
Department for Business Energy and Industrial Strategy,Intellectual Property Office,10/10/2016,Travel & Subsistence,Innovation Directorate,Zenith,RHI01635505,53.54,Not Applicable,
Department for Business Energy and Industrial Strategy,Intellectual Property Office,10/10/2016,Travel & Subsistence,Innovation Directorate,Zenith,RHI01635506,134.24,Not Applicable,
Department for Business Energy and Industrial Strategy,Intellectual Property Office,10/10/2016,Travel & Subsistence,Innovation Directorate,Zenith,RHI01635508,134.24,Not Applicable,
Department for Business Energy and Industrial Strategy,Intellectual Property Office,19/10/2016,Travel & Subsistence,Innovation Directorate,Zenith,RHI01635511,134.24,Not Applicable,
Department for Business Energy and Industrial Strategy,Intellectual Property Office,10/10/2016,Travel & Subsistence,Innovation Directorate,Zenith,RHI01637704,30.85,Not Applicable,
Department for Business Energy and Industrial Strategy,Intellectual Property Office,12/10/2016,Travel & Subsistence,Innovation Directorate,Zenith,RHI01638276,53.54,Not Applicable,
Department for Business Energy and Industrial Strategy,Intellectual Property Office,17/10/2016,Travel & Subsistence,Innovation Directorate,Zenith,RHI01639397,134.24,Not Applicable,
Department for Business Energy and Industrial Strategy,Intellectual Property Office,17/10/2016,Travel & Subsistence,Innovation Directorate,Zenith,RHI01639398,107.09,Not Applicable,
Department for Business Energy and Industrial Strategy,Intellectual Property Office,24/10/2016,Travel & Subsistence,Innovation Directorate,Zenith,RHI01639399,107.09,Not Applicable,
Department for Business Energy and Industrial Strategy,Intellectual Property Office,24/10/2016,Travel & Subsistence,Innovation Directorate,Zenith,RHI01639400,116.95,Not Applicable,
Department for Business Energy and Industrial Strategy,Intellectual Property Office,25/10/2016,Travel & Subsistence,Innovation Directorate,Zenith,RHI01639401,107.09,Not Applicable,
Department for Business Energy and Industrial Strategy,Intellectual Property Office,19/10/2016,Travel & Subsistence,Innovation Directorate,Zenith,RHI01642542,57.20,Not Applicable,
Department for Business Energy and Industrial Strategy,Intellectual Property Office,24/10/2016,Travel & Subsistence,Innovation Directorate,Zenith,RHI01642546,52.42,Not Applicable,
Department for Business Energy and Industrial Strategy,Intellectual Property Office,24/10/2016,Travel & Subsistence,Innovation Directorate,Zenith,RHI01642550,107.09,Not Applicable,
Department for Business Energy and Industrial Strategy,Intellectual Property Office,25/10/2016,Travel & Subsistence,Innovation Directorate,Zenith,RHI01642551,53.54,Not Applicable,
Department for Business Energy and Industrial Strategy,Intellectual Property Office,21/10/2016,Travel & Subsistence,Innovation Directorate,Zenith,RHI01642552,52.42,Not Applicable,
Department for Business Energy and Industrial Strategy,Intellectual Property Office,24/10/2016,Travel & Subsistence,Innovation Directorate,Zenith,RHI01642553,53.54,Not Applicable,
Department for Business Energy and Industrial Strategy,Intellectual Property Office,20/10/2016,Travel & Subsistence,Innovation Directorate,Zenith,RHI01642554,128.95,Not Applicable,
Department for Business Energy and Industrial Strategy,Intellectual Property Office,19/10/2016,Travel & Subsistence,Innovation Directorate,Zenith,RHI01642555,53.54,Not Applicable,
Department for Business Energy and Industrial Strategy,Intellectual Property Office,24/10/2016,Travel & Subsistence,Innovation Directorate,Zenith,RHI01644652,58.48,Not Applicable,
Department for Business Energy and Industrial Strategy,Intellectual Property Office,31/10/2016,Travel & Subsistence,Innovation Directorate,Zenith,RHI01646592,178.99,Not Applicable,
Department for Business Energy and Industrial Strategy,Intellectual Property Office,03/10/2016,Miscellaneous Expenses General,Innovation Directorate,Mitie Facilities Services Ltd,100-91293357,165.60,Not Applicable,
Department for Business Energy and Industrial Strategy,Intellectual Property Office,07/10/2016,Staff Costs,Innovation Directorate,RADA Enterprise,16050,298.80,Not Applicable,
Department for Business Energy and Industrial Strategy,Intellectual Property Office,05/10/2016,Travel & Subsistence,Innovation Directorate,Veezu Ltd T/A Dragon Taxis (Newport),1274,64.20,Not Applicable,
Department for Business Energy and Industrial Strategy,Intellectual Property Office,05/10/2016,Travel & Subsistence,Innovation Directorate,Veezu Ltd T/A Dragon Taxis (Newport),1274,42.00,Not Applicable,
Department for Business Energy and Industrial Strategy,Intellectual Property Office,05/10/2016,Travel & Subsistence,Innovation Directorate,Veezu Ltd T/A Dragon Taxis (Newport),1274,125.64,Not Applicable,
Department for Business Energy and Industrial Strategy,Intellectual Property Office,04/10/2016,Marketing & Publicity,Innovation Directorate,Aardman Animations Ltd,32768,1539.60,Not Applicable,
Department for Business Energy and Industrial Strategy,Intellectual Property Office,03/10/2016,Supporting UK Business,Innovation Directorate,Marks & Clerk LLP,5109084,2600.00,Not Applicable,
Department for Business Energy and Industrial Strategy,Intellectual Property Office,04/10/2016,Supporting UK Business,Innovation Directorate,Marks & Clerk LLP,7073353,2600.00,Not Applicable,
Department for Business Energy and Industrial Strategy,Intellectual Property Office,24/10/2016,Supporting UK Business,Innovation Directorate,Marks & Clerk LLP,7076104,2600.00,Not Applicable,
Department for Business Energy and Industrial Strategy,Intellectual Property Office,28/10/2016,Supporting UK Business,Innovation Directorate,Nash Matthews,77520,2599.99,Not Applicable,
Department for Business Energy and Industrial Strategy,Intellectual Property Office,24/10/2016,Supporting UK Business,Innovation Directorate,Venner Shipley  LLP,289990,2600.00,Not Applicable,
Department for Business Energy and Industrial Strategy,Intellectual Property Office,17/10/2016,Supporting UK Business,Innovation Directorate,LAWRIE INTELLECTUAL PROPERTY,108377,2600.00,Not Applicable,
Department for Business Energy and Industrial Strategy,Intellectual Property Office,17/10/2016,Supporting UK Business,Innovation Directorate,LAWRIE INTELLECTUAL PROPERTY,108451,2600.00,Not Applicable,
Department for Business Energy and Industrial Strategy,Intellectual Property Office,24/10/2016,Supporting UK Business,Innovation Directorate,LAWRIE INTELLECTUAL PROPERTY,108630,2600.00,Not Applicable,
Department for Business Energy and Industrial Strategy,Intellectual Property Office,26/10/2016,Marketing & Publicity,Innovation Directorate,HI 2 EVENTS,983,384.00,Not Applicable,
Department for Business Energy and Industrial Strategy,Intellectual Property Office,24/10/2016,Marketing & Publicity,Innovation Directorate,DAN ANTHONY PRESENTATIONS LTD,160,800.00,Not Applicable,
Department for Business Energy and Industrial Strategy,Intellectual Property Office,03/10/2016,Supporting UK Business,Innovation Directorate,Lean IP,INV2077,2600.00,Not Applicable,
Department for Business Energy and Industrial Strategy,Intellectual Property Office,28/10/2016,Marketing & Publicity,Innovation Directorate,Lucky Voice Pods Ltd,LVP1013,330.00,Not Applicable,
Department for Business Energy and Industrial Strategy,Intellectual Property Office,26/10/2016,Marketing & Publicity,Innovation Directorate,Gov Delivery,8535,499.00,Not Applicable,
Department for Business Energy and Industrial Strategy,Intellectual Property Office,20/10/2016,Supporting UK Business,Innovation Directorate,Gov Delivery,8810,499.00,Not Applicable,
Department for Business Energy and Industrial Strategy,Intellectual Property Office,24/10/2016,Supporting UK Business,Innovation Directorate,K. W. Peter & Co,101542,2600.00,Not Applicable,
Department for Business Energy and Industrial Strategy,Intellectual Property Office,07/10/2016,Marketing & Publicity,Innovation Directorate,Global Experience Specialists Ltd,738066,130.20,Not Applicable,
Department for Business Energy and Industrial Strategy,Intellectual Property Office,19/10/2016,Staff Costs,Innovation Directorate,Market Research Society,100035045,558.00,Not Applicable,
Department for Business Energy and Industrial Strategy,Intellectual Property Office,06/10/2016,Pay Costs,Innovation Directorate,HM REVENUE AND CUSTOMS,XD006727045975,2977.67,Not Applicable,
Department for Business Energy and Industrial Strategy,Intellectual Property Office,14/10/2016,Marketing & Publicity,Innovation Directorate,Sussex Pages Ltd,INV-0394,254.15,Not Applicable,
Department for Business Energy and Industrial Strategy,Intellectual Property Office,10/10/2016,Supporting UK Business,Innovation Directorate,MBM Commercial LLP,10/12365,2520.00,Not Applicable,
Department for Business Energy and Industrial Strategy,Intellectual Property Office,20/10/2016,Marketing & Publicity,Innovation Directorate,Upper Street Events,64414,679.98,Not Applicable,
Department for Business Energy and Industrial Strategy,Intellectual Property Office,25/10/2016,Supporting UK Business,Innovation Directorate,IS Media Ltd (t/a People for Research),6051,414.00,Not Applicable,
Department for Business Energy and Industrial Strategy,Intellectual Property Office,28/10/2016,Supporting UK Business,Innovation Directorate,Ouzman IP Limited,194,2600.00,Not Applicable,
Department for Business Energy and Industrial Strategy,Intellectual Property Office,20/10/2016,Supporting UK Business,Innovation Directorate,Factiva Limited,79176924,813.60,Not Applicable,
Department for Business Energy and Industrial Strategy,Intellectual Property Office,07/10/2016,Supporting UK Business,Innovation Directorate,Schlich Ltd,6276,2600.00,Not Applicable,
Department for Business Energy and Industrial Strategy,Intellectual Property Office,24/10/2016,Supporting UK Business,Innovation Directorate,Schlich Ltd,6346,2600.00,Not Applicable,
Department for Business Energy and Industrial Strategy,Intellectual Property Office,07/10/2016,Supporting UK Business,Innovation Directorate,Optimus Patents Ltd,3163,2600.00,Not Applicable,
Department for Business Energy and Industrial Strategy,Intellectual Property Office,10/10/2016,Marketing & Publicity,Innovation Directorate,Fix-a-Form International Ltd,1927,37.30,Not Applicable,
Department for Business Energy and Industrial Strategy,Intellectual Property Office,27/10/2016,Staff Costs,Innovation Directorate,Marketing Tom Media Ltd,INV-3314,859.68,Not Applicable,
Department for Business Energy and Industrial Strategy,Intellectual Property Office,18/10/2016,Supporting UK Business,Innovation Directorate,Laudens Ltd,72955,2600.00,Not Applicable,
Department for Business Energy and Industrial Strategy,Intellectual Property Office,17/10/2016,Staff Costs,Innovation Directorate,Oxford Professional Education Group Ltd,E15161731,1560.00,Not Applicable,
Department for Business Energy and Industrial Strategy,Intellectual Property Office,19/10/2016,Travel & Subsistence,International Policy Directorate,Personal expenses,OS000000070,17.57,Not Applicable,
Department for Business Energy and Industrial Strategy,Intellectual Property Office,31/10/2016,Travel & Subsistence,International Policy Directorate,Personal expenses,OS000000077,6.48,Not Applicable,
Department for Business Energy and Industrial Strategy,Intellectual Property Office,31/10/2016,Travel & Subsistence,International Policy Directorate,Personal expenses,OS000000078,302.72,Not Applicable,
Department for Business Energy and Industrial Strategy,Intellectual Property Office,31/10/2016,Travel & Subsistence,International Policy Directorate,Personal expenses,UK000000334,384.42,Not Applicable,
Department for Business Energy and Industrial Strategy,Intellectual Property Office,12/10/2016,Travel & Subsistence,International Policy Directorate,Personal expenses,OS000000062,223.19,Not Applicable,
Department for Business Energy and Industrial Strategy,Intellectual Property Office,12/10/2016,Travel & Subsistence,International Policy Directorate,Personal expenses,UK000000265,32.58,Not Applicable,
Department for Business Energy and Industrial Strategy,Intellectual Property Office,12/10/2016,Travel & Subsistence,International Policy Directorate,Personal expenses,UK000000267,21.17,Not Applicable,
Department for Business Energy and Industrial Strategy,Intellectual Property Office,20/10/2016,Travel & Subsistence,International Policy Directorate,Personal expenses,UK000000331,177.32,Not Applicable,
Department for Business Energy and Industrial Strategy,Intellectual Property Office,20/10/2016,Travel & Subsistence,International Policy Directorate,Personal expenses,UK000000332,31.61,Not Applicable,
Department for Business Energy and Industrial Strategy,Intellectual Property Office,19/10/2016,Travel & Subsistence,International Policy Directorate,Personal expenses,OS000000069,618.10,Not Applicable,
Department for Business Energy and Industrial Strategy,Intellectual Property Office,07/10/2016,Travel & Subsistence,International Policy Directorate,Personal expenses,OS000000059,525.54,Not Applicable,
Department for Business Energy and Industrial Strategy,Intellectual Property Office,03/10/2016,Travel & Subsistence,International Policy Directorate,Personal expenses,UK000000215,375.00,Not Applicable,
Department for Business Energy and Industrial Strategy,Intellectual Property Office,31/10/2016,Travel & Subsistence,International Policy Directorate,Personal expenses,OS000000076,175.68,Not Applicable,
Department for Business Energy and Industrial Strategy,Intellectual Property Office,10/10/2016,Pay Costs,International Policy Directorate,Brook Street (UK) Ltd,30951092,716.10,Not Applicable,
Department for Business Energy and Industrial Strategy,Intellectual Property Office,20/10/2016,Pay Costs,International Policy Directorate,Brook Street (UK) Ltd,30961538,666.12,Not Applicable,
Department for Business Energy and Industrial Strategy,Intellectual Property Office,20/10/2016,Pay Costs,International Policy Directorate,Brook Street (UK) Ltd,30972165,399.67,Not Applicable,
Department for Business Energy and Industrial Strategy,Intellectual Property Office,26/10/2016,Travel & Subsistence,International Policy Directorate,Zenith,RHI01642545,52.42,Not Applicable,
Department for Business Energy and Industrial Strategy,Intellectual Property Office,31/10/2016,Travel & Subsistence,International Policy Directorate,Zenith,RHI01646598,57.20,Not Applicable,
Department for Business Energy and Industrial Strategy,Intellectual Property Office,26/10/2016,Pay Costs,International Policy Directorate,Ministry of Justice (MoJ),IWW000HQ/13096,3641.35,Not Applicable,
Department for Business Energy and Industrial Strategy,Intellectual Property Office,05/10/2016,Travel & Subsistence,International Policy Directorate,Veezu Ltd T/A Dragon Taxis (Newport),1274,121.44,Not Applicable,
Department for Business Energy and Industrial Strategy,Intellectual Property Office,10/10/2016,Supporting UK Business,International Policy Directorate,FOREIGN & COMMONWEALTH OFFICE,1090463,35147.30,Not Applicable,
Department for Business Energy and Industrial Strategy,Intellectual Property Office,12/10/2016,Supporting UK Business,International Policy Directorate,FOREIGN & COMMONWEALTH OFFICE,1090709,6196.70,Not Applicable,
Department for Business Energy and Industrial Strategy,Intellectual Property Office,31/10/2016,Supporting UK Business,International Policy Directorate,FOREIGN & COMMONWEALTH OFFICE,1090863,12703.80,Not Applicable,
Department for Business Energy and Industrial Strategy,Intellectual Property Office,31/10/2016,Supporting UK Business,International Policy Directorate,FOREIGN & COMMONWEALTH OFFICE,1091042,19196.32,Not Applicable,
Department for Business Energy and Industrial Strategy,Intellectual Property Office,25/10/2016,Miscellaneous Expenses General,International Policy Directorate,Intercontinental,F&B MEETING FINA,510.69,Not Applicable,
Department for Business Energy and Industrial Strategy,Intellectual Property Office,06/10/2016,Pay Costs,International Policy Directorate,HM REVENUE AND CUSTOMS,XD006727045975,698.03,Not Applicable,
Department for Business Energy and Industrial Strategy,Intellectual Property Office,20/10/2016,Miscellaneous Expenses General,International Policy Directorate,China-Britain Business Council,20760,8444.40,Not Applicable,
Department for Business Energy and Industrial Strategy,Intellectual Property Office,06/10/2016,Travel & Subsistence,International Policy Directorate,Richard Hacon,I900,375.84,Not Applicable,
Department for Business Energy and Industrial Strategy,Intellectual Property Office,05/10/2016,Travel & Subsistence,IT Directorate,Personal expenses,UK000000139,8.00,Not Applicable,
Department for Business Energy and Industrial Strategy,Intellectual Property Office,03/10/2016,Travel & Subsistence,IT Directorate,Personal expenses,UK000000207,8.00,Not Applicable,
Department for Business Energy and Industrial Strategy,Intellectual Property Office,14/10/2016,Travel & Subsistence,IT Directorate,Personal expenses,UK000000285,17.70,Not Applicable,
Department for Business Energy and Industrial Strategy,Intellectual Property Office,21/10/2016,Travel & Subsistence,IT Directorate,Personal expenses,UK000000340,11.65,Not Applicable,
Department for Business Energy and Industrial Strategy,Intellectual Property Office,03/10/2016,Travel & Subsistence,IT Directorate,Personal expenses,UK000000090,26.50,Not Applicable,
Department for Business Energy and Industrial Strategy,Intellectual Property Office,31/10/2016,Travel & Subsistence,IT Directorate,Personal expenses,UK000000381,20.39,Not Applicable,
Department for Business Energy and Industrial Strategy,Intellectual Property Office,13/10/2016,Travel & Subsistence,IT Directorate,Personal expenses,UK000000277,4.50,Not Applicable,
Department for Business Energy and Industrial Strategy,Intellectual Property Office,05/10/2016,Travel & Subsistence,IT Directorate,Personal expenses,UK000000211,45.00,Not Applicable,
Department for Business Energy and Industrial Strategy,Intellectual Property Office,07/10/2016,Travel & Subsistence,IT Directorate,Personal expenses,UK000000254,8.39,Not Applicable,
Department for Business Energy and Industrial Strategy,Intellectual Property Office,10/10/2016,Travel & Subsistence,IT Directorate,Personal expenses,UK000000261,99.90,Not Applicable,
Department for Business Energy and Industrial Strategy,Intellectual Property Office,18/10/2016,Travel & Subsistence,IT Directorate,Personal expenses,UK000000276,99.00,Not Applicable,
Department for Business Energy and Industrial Strategy,Intellectual Property Office,20/10/2016,Travel & Subsistence,IT Directorate,Personal expenses,UK000000322,99.00,Not Applicable,
Department for Business Energy and Industrial Strategy,Intellectual Property Office,24/10/2016,Travel & Subsistence,IT Directorate,Personal expenses,UK000000350,9.90,Not Applicable,
Department for Business Energy and Industrial Strategy,Intellectual Property Office,31/10/2016,Travel & Subsistence,IT Directorate,Personal expenses,UK000000375,8.95,Not Applicable,
Department for Business Energy and Industrial Strategy,Intellectual Property Office,05/10/2016,Travel & Subsistence,IT Directorate,Personal expenses,UK000000230,7.60,Not Applicable,
Department for Business Energy and Industrial Strategy,Intellectual Property Office,12/10/2016,Travel & Subsistence,IT Directorate,Personal expenses,UK000000145,60.00,Not Applicable,
Department for Business Energy and Industrial Strategy,Intellectual Property Office,03/10/2016,Travel & Subsistence,IT Directorate,Personal expenses,UK000000147,35.00,Not Applicable,
Department for Business Energy and Industrial Strategy,Intellectual Property Office,14/10/2016,Telecoms,IT Directorate,British  Telecom,GP00002104M038WS,3462.60,Not Applicable,
Department for Business Energy and Industrial Strategy,Intellectual Property Office,26/10/2016,Telecoms,IT Directorate,British  Telecom,Q019Z&,3000.00,Not Applicable,
Department for Business Energy and Industrial Strategy,Intellectual Property Office,24/10/2016,Telecoms,IT Directorate,British  Telecom,VP02239170M17801,8719.06,Not Applicable,
Department for Business Energy and Industrial Strategy,Intellectual Property Office,07/10/2016,Information Technology,IT Directorate,Capita Business Services  Ltd,LO10147000,5257.52,Not Applicable,
Department for Business Energy and Industrial Strategy,Intellectual Property Office,07/10/2016,Information Technology,IT Directorate,Capita Business Services  Ltd,LO10147000,3168.74,Not Applicable,
Department for Business Energy and Industrial Strategy,Intellectual Property Office,07/10/2016,Information Technology,IT Directorate,Capita Business Services  Ltd,LO10147000,12307.29,Not Applicable,
Department for Business Energy and Industrial Strategy,Intellectual Property Office,07/10/2016,Information Technology,IT Directorate,Capita Business Services  Ltd,LO10147000,5937.73,Not Applicable,
Department for Business Energy and Industrial Strategy,Intellectual Property Office,07/10/2016,Information Technology,IT Directorate,Capita Business Services  Ltd,LO10147000,6514.26,Not Applicable,
Department for Business Energy and Industrial Strategy,Intellectual Property Office,07/10/2016,Information Technology,IT Directorate,Capita Business Services  Ltd,LO10147000,8248.58,Not Applicable,
Department for Business Energy and Industrial Strategy,Intellectual Property Office,14/10/2016,Information Technology,IT Directorate,Capita Business Services  Ltd,LO10149487,6075.78,Not Applicable,
Department for Business Energy and Industrial Strategy,Intellectual Property Office,14/10/2016,Information Technology,IT Directorate,Capita Business Services  Ltd,LO10149487,3404.59,Not Applicable,
Department for Business Energy and Industrial Strategy,Intellectual Property Office,14/10/2016,Information Technology,IT Directorate,Capita Business Services  Ltd,LO10149487,7899.56,Not Applicable,
Department for Business Energy and Industrial Strategy,Intellectual Property Office,14/10/2016,Information Technology,IT Directorate,Capita Business Services  Ltd,LO10149487,5853.46,Not Applicable,
Department for Business Energy and Industrial Strategy,Intellectual Property Office,14/10/2016,Information Technology,IT Directorate,Capita Business Services  Ltd,LO10149487,3960.92,Not Applicable,
Department for Business Energy and Industrial Strategy,Intellectual Property Office,14/10/2016,Information Technology,IT Directorate,Capita Business Services  Ltd,LO10149487,6504.20,Not Applicable,
Department for Business Energy and Industrial Strategy,Intellectual Property Office,24/10/2016,Information Technology,IT Directorate,Capita Business Services  Ltd,LO10151533,3420.13,Not Applicable,
Department for Business Energy and Industrial Strategy,Intellectual Property Office,24/10/2016,Information Technology,IT Directorate,Capita Business Services  Ltd,LO10151533,3312.58,Not Applicable,
Department for Business Energy and Industrial Strategy,Intellectual Property Office,24/10/2016,Information Technology,IT Directorate,Capita Business Services  Ltd,LO10151533,6380.16,Not Applicable,
Department for Business Energy and Industrial Strategy,Intellectual Property Office,24/10/2016,Information Technology,IT Directorate,Capita Business Services  Ltd,LO10151533,6160.05,Not Applicable,
Department for Business Energy and Industrial Strategy,Intellectual Property Office,24/10/2016,Information Technology,IT Directorate,Capita Business Services  Ltd,LO10151533,3496.61,Not Applicable,
Department for Business Energy and Industrial Strategy,Intellectual Property Office,24/10/2016,Information Technology,IT Directorate,Capita Business Services  Ltd,LO10151533,6221.60,Not Applicable,
Department for Business Energy and Industrial Strategy,Intellectual Property Office,28/10/2016,Information Technology,IT Directorate,Capita Business Services  Ltd,LO10153050,2517.60,Not Applicable,
Department for Business Energy and Industrial Strategy,Intellectual Property Office,28/10/2016,Information Technology,IT Directorate,Capita Business Services  Ltd,LO10153050,3366.10,Not Applicable,
Department for Business Energy and Industrial Strategy,Intellectual Property Office,28/10/2016,Information Technology,IT Directorate,Capita Business Services  Ltd,LO10153050,3201.68,Not Applicable,
Department for Business Energy and Industrial Strategy,Intellectual Property Office,28/10/2016,Information Technology,IT Directorate,Capita Business Services  Ltd,LO10153050,2656.97,Not Applicable,
Department for Business Energy and Industrial Strategy,Intellectual Property Office,28/10/2016,Information Technology,IT Directorate,Capita Business Services  Ltd,LO10153050,4786.05,Not Applicable,
Department for Business Energy and Industrial Strategy,Intellectual Property Office,28/10/2016,Information Technology,IT Directorate,Capita Business Services  Ltd,LO10153050,5468.21,Not Applicable,
Department for Business Energy and Industrial Strategy,Intellectual Property Office,28/10/2016,Information Technology,IT Directorate,Capita Business Services  Ltd,LO10153050,2001.52,Not Applicable,
Department for Business Energy and Industrial Strategy,Intellectual Property Office,28/10/2016,Information Technology,IT Directorate,Capita Business Services  Ltd,LO10153050,2664.12,Not Applicable,
Department for Business Energy and Industrial Strategy,Intellectual Property Office,28/10/2016,Information Technology,IT Directorate,Capita Business Services  Ltd,LO10153050,2517.60,Not Applicable,
Department for Business Energy and Industrial Strategy,Intellectual Property Office,28/10/2016,Information Technology,IT Directorate,Capita Business Services  Ltd,LO10153050,1273.16,Not Applicable,
Department for Business Energy and Industrial Strategy,Intellectual Property Office,28/10/2016,Information Technology,IT Directorate,Capita Business Services  Ltd,LO10153050,1592.12,Not Applicable,
Department for Business Energy and Industrial Strategy,Intellectual Property Office,28/10/2016,Information Technology,IT Directorate,Capita Business Services  Ltd,LO10153050,3334.58,Not Applicable,
Department for Business Energy and Industrial Strategy,Intellectual Property Office,28/10/2016,Information Technology,IT Directorate,Capita Business Services  Ltd,LO10153050,3201.68,Not Applicable,
Department for Business Energy and Industrial Strategy,Intellectual Property Office,28/10/2016,Information Technology,IT Directorate,Capita Business Services  Ltd,LO10153050,3325.67,Not Applicable,
Department for Business Energy and Industrial Strategy,Intellectual Property Office,28/10/2016,Information Technology,IT Directorate,Capita Business Services  Ltd,LO10153050,5265.01,Not Applicable,
Department for Business Energy and Industrial Strategy,Intellectual Property Office,28/10/2016,Information Technology,IT Directorate,Capita Business Services  Ltd,LO10153050,2517.48,Not Applicable,
Department for Business Energy and Industrial Strategy,Intellectual Property Office,28/10/2016,Information Technology,IT Directorate,Capita Business Services  Ltd,LO10153050,3420.13,Not Applicable,
Department for Business Energy and Industrial Strategy,Intellectual Property Office,28/10/2016,Information Technology,IT Directorate,Capita Business Services  Ltd,LO10153050,2517.48,Not Applicable,
Department for Business Energy and Industrial Strategy,Intellectual Property Office,28/10/2016,Information Technology,IT Directorate,Capita Business Services  Ltd,LO10153050,4032.76,Not Applicable,
Department for Business Energy and Industrial Strategy,Intellectual Property Office,28/10/2016,Information Technology,IT Directorate,Capita Business Services  Ltd,LO10153050,3566.40,Not Applicable,
Department for Business Energy and Industrial Strategy,Intellectual Property Office,07/10/2016,Information Technology,IT Directorate,LA International Computer Consultants Lt,LA400258,2149.37,Not Applicable,
Department for Business Energy and Industrial Strategy,Intellectual Property Office,12/10/2016,Information Technology,IT Directorate,LA International Computer Consultants Lt,LA401286,3146.88,Not Applicable,
Department for Business Energy and Industrial Strategy,Intellectual Property Office,14/10/2016,Information Technology,IT Directorate,LA International Computer Consultants Lt,LA401541,2143.78,Not Applicable,
Department for Business Energy and Industrial Strategy,Intellectual Property Office,25/10/2016,Information Technology,IT Directorate,LA International Computer Consultants Lt,LA402166,2068.81,Not Applicable,
Department for Business Energy and Industrial Strategy,Intellectual Property Office,20/10/2016,Information Technology,IT Directorate,LA International Computer Consultants Lt,LA402167,6293.76,Not Applicable,
Department for Business Energy and Industrial Strategy,Intellectual Property Office,28/10/2016,Information Technology,IT Directorate,LA International Computer Consultants Lt,LA403341,2101.26,Not Applicable,
Department for Business Energy and Industrial Strategy,Intellectual Property Office,28/10/2016,Information Technology,IT Directorate,LA International Computer Consultants Lt,LA403342,3146.88,Not Applicable,
Department for Business Energy and Industrial Strategy,Intellectual Property Office,03/10/2016,Miscellaneous Expenses General,IT Directorate,Mitie Facilities Services Ltd,100-91293357,85.20,Not Applicable,
Department for Business Energy and Industrial Strategy,Intellectual Property Office,20/10/2016,Telecoms,IT Directorate,Talk Talk Business,15784067,522.88,Not Applicable,
Department for Business Energy and Industrial Strategy,Intellectual Property Office,14/10/2016,Information Technology,IT Directorate,Trustmarque Solutions Ltd,2248914,9240.04,Not Applicable,
Department for Business Energy and Industrial Strategy,Intellectual Property Office,19/10/2016,Information Technology,IT Directorate,Ultima Risk Management,URM/105580,3510.00,Not Applicable,
Department for Business Energy and Industrial Strategy,Intellectual Property Office,05/10/2016,Travel & Subsistence,IT Directorate,Veezu Ltd T/A Dragon Taxis (Newport),1274,23.40,Not Applicable,
Department for Business Energy and Industrial Strategy,Intellectual Property Office,05/10/2016,Travel & Subsistence,IT Directorate,Veezu Ltd T/A Dragon Taxis (Newport),1274,23.40,Not Applicable,
Department for Business Energy and Industrial Strategy,Intellectual Property Office,07/10/2016,Telecoms,IT Directorate,Virgin Media,917218-077,580.49,Not Applicable,
Department for Business Energy and Industrial Strategy,Intellectual Property Office,14/10/2016,Telecoms,IT Directorate,Virgin Media,409092201-07OCT,492.50,Not Applicable,
Department for Business Energy and Industrial Strategy,Intellectual Property Office,14/10/2016,Telecoms,IT Directorate,Virgin Media,414650701-12OCT,112.36,Not Applicable,
Department for Business Energy and Industrial Strategy,Intellectual Property Office,14/10/2016,Telecoms,IT Directorate,Virgin Media,414673601-07OCT,258.04,Not Applicable,
Department for Business Energy and Industrial Strategy,Intellectual Property Office,24/10/2016,Telecoms,IT Directorate,Virgin Media,435496901-19OCT,47.09,Not Applicable,
Department for Business Energy and Industrial Strategy,Intellectual Property Office,07/10/2016,Telecoms,IT Directorate,Virgin Media,440030601-05OCT,46.80,Not Applicable,
Department for Business Energy and Industrial Strategy,Intellectual Property Office,05/10/2016,Telecoms,IT Directorate,Virgin Media,440037101-23SEP,48.49,Not Applicable,
Department for Business Energy and Industrial Strategy,Intellectual Property Office,14/10/2016,Telecoms,IT Directorate,Virgin Media,441057501-121016,46.84,Not Applicable,
Department for Business Energy and Industrial Strategy,Intellectual Property Office,14/10/2016,Telecoms,IT Directorate,Virgin Media,441626201-12OCT,40.86,Not Applicable,
Department for Business Energy and Industrial Strategy,Intellectual Property Office,14/10/2016,Telecoms,IT Directorate,Virgin Media,441626301-12OCT,46.81,Not Applicable,
Department for Business Energy and Industrial Strategy,Intellectual Property Office,20/10/2016,Telecoms,IT Directorate,Virgin Media,441885201-17OCT,60.71,Not Applicable,
Department for Business Energy and Industrial Strategy,Intellectual Property Office,07/10/2016,Telecoms,IT Directorate,Virgin Media,442061801-05OCT,54.49,Not Applicable,
Department for Business Energy and Industrial Strategy,Intellectual Property Office,14/10/2016,Telecoms,IT Directorate,Virgin Media,442137701-12OCT,58.80,Not Applicable,
Department for Business Energy and Industrial Strategy,Intellectual Property Office,24/10/2016,Telecoms,IT Directorate,Virgin Media,442140501-19OCT,58.93,Not Applicable,
Department for Business Energy and Industrial Strategy,Intellectual Property Office,07/10/2016,Telecoms,IT Directorate,Virgin Media,442217001-05OCT,67.49,Not Applicable,
Department for Business Energy and Industrial Strategy,Intellectual Property Office,14/10/2016,Telecoms,IT Directorate,Virgin Media,442217501-12OCT,66.73,Not Applicable,
Department for Business Energy and Industrial Strategy,Intellectual Property Office,14/10/2016,Telecoms,IT Directorate,Virgin Media,442295501-12OCT,68.10,Not Applicable,
Department for Business Energy and Industrial Strategy,Intellectual Property Office,24/10/2016,Telecoms,IT Directorate,Virgin Media,442469201-19OCT,66.22,Not Applicable,
Department for Business Energy and Industrial Strategy,Intellectual Property Office,14/10/2016,Telecoms,IT Directorate,Virgin Media,442481401-07OCT,79.73,Not Applicable,
Department for Business Energy and Industrial Strategy,Intellectual Property Office,14/10/2016,Telecoms,IT Directorate,Virgin Media,442485301-07OCT,72.96,Not Applicable,
Department for Business Energy and Industrial Strategy,Intellectual Property Office,14/10/2016,Telecoms,IT Directorate,Virgin Media,442486301-12OCT,66,Not Applicable,
Department for Business Energy and Industrial Strategy,Intellectual Property Office,14/10/2016,Telecoms,IT Directorate,Virgin Media,442537901-12OCT,69.89,Not Applicable,
Department for Business Energy and Industrial Strategy,Intellectual Property Office,14/10/2016,Telecoms,IT Directorate,Virgin Media,442560501-07OCT,73.44,Not Applicable,
Department for Business Energy and Industrial Strategy,Intellectual Property Office,12/10/2016,Telecoms,IT Directorate,Virgin Media,442561201-05OCT,76.27,Not Applicable,
Department for Business Energy and Industrial Strategy,Intellectual Property Office,14/10/2016,Telecoms,IT Directorate,Virgin Media,442561301-07OCT,72.07,Not Applicable,
Department for Business Energy and Industrial Strategy,Intellectual Property Office,18/10/2016,Telecoms,IT Directorate,Virgin Media,442565901-12OCT,72,Not Applicable,
Department for Business Energy and Industrial Strategy,Intellectual Property Office,17/10/2016,Telecoms,IT Directorate,Virgin Media,442567801-09DEC,418.1,Not Applicable,
Department for Business Energy and Industrial Strategy,Intellectual Property Office,17/10/2016,Telecoms,IT Directorate,Virgin Media,442567801-09FEB,85.01,Not Applicable,
Department for Business Energy and Industrial Strategy,Intellectual Property Office,17/10/2016,Telecoms,IT Directorate,Virgin Media,442567801-09MAR,87.58,Not Applicable,
Department for Business Energy and Industrial Strategy,Intellectual Property Office,17/10/2016,Telecoms,IT Directorate,Virgin Media,442567801-11APR,90.13,Not Applicable,
Department for Business Energy and Industrial Strategy,Intellectual Property Office,17/10/2016,Telecoms,IT Directorate,Virgin Media,442567801-11JAN,84,Not Applicable,
Department for Business Energy and Industrial Strategy,Intellectual Property Office,17/10/2016,Telecoms,IT Directorate,Virgin Media,442567801-12AUG,99.68,Not Applicable,
Department for Business Energy and Industrial Strategy,Intellectual Property Office,17/10/2016,Telecoms,IT Directorate,Virgin Media,442567801-12OCT,100.69,Not Applicable,
Department for Business Energy and Industrial Strategy,Intellectual Property Office,17/10/2016,Telecoms,IT Directorate,Virgin Media,442567801-13MAY,89.2,Not Applicable,
Department for Business Energy and Industrial Strategy,Intellectual Property Office,17/10/2016,Telecoms,IT Directorate,Virgin Media,442567801-14JUL,86.17,Not Applicable,
Department for Business Energy and Industrial Strategy,Intellectual Property Office,17/10/2016,Telecoms,IT Directorate,Virgin Media,442567801-14JUN,91.48,Not Applicable,
Department for Business Energy and Industrial Strategy,Intellectual Property Office,17/10/2016,Telecoms,IT Directorate,Virgin Media,442567801-14SEP,89.89,Not Applicable,
Department for Business Energy and Industrial Strategy,Intellectual Property Office,04/10/2016,Telecoms,IT Directorate,Virgin Media,442573701-28SEP,72.98,Not Applicable,
Department for Business Energy and Industrial Strategy,Intellectual Property Office,14/10/2016,Telecoms,IT Directorate,Virgin Media,442589901-07OCT,66.85,Not Applicable,
Department for Business Energy and Industrial Strategy,Intellectual Property Office,18/10/2016,Telecoms,IT Directorate,Virgin Media,442593001-12OCT,66.4,Not Applicable,
Department for Business Energy and Industrial Strategy,Intellectual Property Office,26/10/2016,Telecoms,IT Directorate,Virgin Media,442594601-19OCT,66.38,Not Applicable,
Department for Business Energy and Industrial Strategy,Intellectual Property Office,14/10/2016,Telecoms,IT Directorate,Virgin Media,442595001-07OCT,66,Not Applicable,
Department for Business Energy and Industrial Strategy,Intellectual Property Office,14/10/2016,Telecoms,IT Directorate,Virgin Media,442618301-07OCT,67.36,Not Applicable,
Department for Business Energy and Industrial Strategy,Intellectual Property Office,14/10/2016,Telecoms,IT Directorate,Virgin Media,442618301-08SEP,69.16,Not Applicable,
Department for Business Energy and Industrial Strategy,Intellectual Property Office,20/10/2016,Telecoms,IT Directorate,Virgin Media,442636301-17OCT,72.8,Not Applicable,
Department for Business Energy and Industrial Strategy,Intellectual Property Office,05/10/2016,Telecoms,IT Directorate,Virgin Media,088813901-29SEP,47.04,Not Applicable,
Department for Business Energy and Industrial Strategy,Intellectual Property Office,26/10/2016,Telecoms,IT Directorate,Vodafone Corporate Ltd,81895462,4602.5,Not Applicable,
Department for Business Energy and Industrial Strategy,Intellectual Property Office,26/10/2016,Telecoms,IT Directorate,Vodafone Corporate Ltd,81901091,15.68,Not Applicable,
Department for Business Energy and Industrial Strategy,Intellectual Property Office,07/10/2016,Telecoms,IT Directorate,ZEN INTERNET LIMITED,21122903,5245.19,Not Applicable,
Department for Business Energy and Industrial Strategy,Intellectual Property Office,03/10/2016,Telecoms,IT Directorate,ZEN INTERNET LIMITED,21151287,-5.17,Not Applicable,
Department for Business Energy and Industrial Strategy,Intellectual Property Office,03/10/2016,Telecoms,IT Directorate,ZEN INTERNET LIMITED,21151288,-9.13,Not Applicable,
Department for Business Energy and Industrial Strategy,Intellectual Property Office,14/10/2016,Telecoms,IT Directorate,ZEN INTERNET LIMITED,21282888,0.1,Not Applicable,
Department for Business Energy and Industrial Strategy,Intellectual Property Office,03/10/2016,Telecoms,IT Directorate,ZEN INTERNET LIMITED,21314854,515.62,Not Applicable,
Department for Business Energy and Industrial Strategy,Intellectual Property Office,05/10/2016,Telecoms,IT Directorate,ZEN INTERNET LIMITED,21351133,39.12,Not Applicable,
Department for Business Energy and Industrial Strategy,Intellectual Property Office,07/10/2016,Telecoms,IT Directorate,ZEN INTERNET LIMITED,21369447,14.1,Not Applicable,
Department for Business Energy and Industrial Strategy,Intellectual Property Office,12/10/2016,Telecoms,IT Directorate,ZEN INTERNET LIMITED,21388951,5238.72,Not Applicable,
Department for Business Energy and Industrial Strategy,Intellectual Property Office,07/10/2016,Information Technology,IT Directorate,CSA WAVERLEY,S-INV-102509,495.41,Not Applicable,
Department for Business Energy and Industrial Strategy,Intellectual Property Office,18/10/2016,Information Technology,IT Directorate,HORNBILL SERVICE MANAGEMENT LIMITED,INV12671,14603.4,Not Applicable,
Department for Business Energy and Industrial Strategy,Intellectual Property Office,28/10/2016,Telecoms,IT Directorate,VIRGIN MEDIA,288670201-27OCT,44.29,Not Applicable,
Department for Business Energy and Industrial Strategy,Intellectual Property Office,28/10/2016,Telecoms,IT Directorate,VIRGIN MEDIA,416860501-25OCT,53.2,Not Applicable,
Department for Business Energy and Industrial Strategy,Intellectual Property Office,28/10/2016,Telecoms,IT Directorate,VIRGIN MEDIA,440030801-25OCT,47.45,Not Applicable,
Department for Business Energy and Industrial Strategy,Intellectual Property Office,28/10/2016,Telecoms,IT Directorate,VIRGIN MEDIA,440037101-25OCT,48.64,Not Applicable,
Department for Business Energy and Industrial Strategy,Intellectual Property Office,28/10/2016,Telecoms,IT Directorate,VIRGIN MEDIA,441112301-25OCT,46.8,Not Applicable,
Department for Business Energy and Industrial Strategy,Intellectual Property Office,28/10/2016,Telecoms,IT Directorate,VIRGIN MEDIA,441938301-27OCT,66.46,Not Applicable,
Department for Business Energy and Industrial Strategy,Intellectual Property Office,28/10/2016,Telecoms,IT Directorate,VIRGIN MEDIA,442013201-25OCT,54.32,Not Applicable,
Department for Business Energy and Industrial Strategy,Intellectual Property Office,28/10/2016,Telecoms,IT Directorate,VIRGIN MEDIA,442217601-27OCT,67.12,Not Applicable,
Department for Business Energy and Industrial Strategy,Intellectual Property Office,28/10/2016,Telecoms,IT Directorate,VIRGIN MEDIA,442366301-27OCT,74.22,Not Applicable,
Department for Business Energy and Industrial Strategy,Intellectual Property Office,28/10/2016,Telecoms,IT Directorate,VIRGIN MEDIA,442390001-25OCT,79.2,Not Applicable,
Department for Business Energy and Industrial Strategy,Intellectual Property Office,28/10/2016,Telecoms,IT Directorate,VIRGIN MEDIA,442485101-25OCT,72.91,Not Applicable,
Department for Business Energy and Industrial Strategy,Intellectual Property Office,28/10/2016,Telecoms,IT Directorate,VIRGIN MEDIA,442644001-19OCT,66,Not Applicable,
Department for Business Energy and Industrial Strategy,Intellectual Property Office,28/10/2016,Telecoms,IT Directorate,VIRGIN MEDIA,442664101-25OCT,67.69,Not Applicable,
Department for Business Energy and Industrial Strategy,Intellectual Property Office,28/10/2016,Telecoms,IT Directorate,VIRGIN MEDIA,740347401-24OCT,50.41,Not Applicable,
Department for Business Energy and Industrial Strategy,Intellectual Property Office,24/10/2016,Telecoms,IT Directorate,VIRGIN MEDIA,740075701-20OCT,36.11,Not Applicable,
Department for Business Energy and Industrial Strategy,Intellectual Property Office,14/10/2016,Telecoms,IT Directorate,VIRGIN MEDIA,745653601-10OCT,66.78,Not Applicable,
Department for Business Energy and Industrial Strategy,Intellectual Property Office,06/10/2016,Telecoms,IT Directorate,THREE,AIK28254770,851.4,Not Applicable,
Department for Business Energy and Industrial Strategy,Intellectual Property Office,10/10/2016,Telecoms,IT Directorate,THREE,AJK29383497,175.87,Not Applicable,
Department for Business Energy and Industrial Strategy,Intellectual Property Office,03/10/2016,Information Technology,IT Directorate,Questmark Ltd,19969,126,Not Applicable,
Department for Business Energy and Industrial Strategy,Intellectual Property Office,14/10/2016,Information Technology,IT Directorate,Questmark Ltd,19990,144,Not Applicable,
Department for Business Energy and Industrial Strategy,Intellectual Property Office,19/10/2016,Information Technology,IT Directorate,Questmark Ltd,19991,162,Not Applicable,
Department for Business Energy and Industrial Strategy,Intellectual Property Office,26/10/2016,Information Technology,IT Directorate,Questmark Ltd,19999,234,Not Applicable,
Department for Business Energy and Industrial Strategy,Intellectual Property Office,14/10/2016,Telecoms,IT Directorate,Virgin Media,6885148-12OCT16,60,Not Applicable,
Department for Business Energy and Industrial Strategy,Intellectual Property Office,20/10/2016,Telecoms,IT Directorate,Virgin Media,874902401-17OCT,75.35,Not Applicable,
Department for Business Energy and Industrial Strategy,Intellectual Property Office,24/10/2016,Telecoms,IT Directorate,EE Ltd,1246698050,6301.12,Not Applicable,
Department for Business Energy and Industrial Strategy,Intellectual Property Office,07/10/2016,Telecoms,IT Directorate,Personal expenses,UK10/102016/6441,11857.72,Not Applicable,
Department for Business Energy and Industrial Strategy,Intellectual Property Office,07/10/2016,Telecoms,IT Directorate,Personal expenses,UK10/102016/6851,3322.08,Not Applicable,
Department for Business Energy and Industrial Strategy,Intellectual Property Office,26/10/2016,Telecoms,IT Directorate,Spectrum Internet Ltd,23018,168,Not Applicable,
Department for Business Energy and Industrial Strategy,Intellectual Property Office,26/10/2016,Information Technology,IT Directorate,NTA Monitor Limited,16917,420,Not Applicable,
Department for Business Energy and Industrial Strategy,Intellectual Property Office,06/10/2016,Pay Costs,IT Directorate,HM REVENUE AND CUSTOMS,XD006727045975,1345.7,Not Applicable,
Department for Business Energy and Industrial Strategy,Intellectual Property Office,07/10/2016,Information Technology,IT Directorate,Evolve Secure Solutions Ltd,SI001075,7392,Not Applicable,
Department for Business Energy and Industrial Strategy,Intellectual Property Office,17/10/2016,Information Technology,IT Directorate,Evolve Secure Solutions Ltd,SI001076,4224,Not Applicable,
Department for Business Energy and Industrial Strategy,Intellectual Property Office,05/10/2016,Information Technology,IT Directorate,Evolve Secure Solutions Ltd,SI001078,5280,Not Applicable,
Department for Business Energy and Industrial Strategy,Intellectual Property Office,20/10/2016,Information Technology,IT Directorate,Dell Software International Limited,4700155926,147.39,Not Applicable,
Department for Business Energy and Industrial Strategy,Intellectual Property Office,06/10/2016,Information Technology,IT Directorate,Kenson Network Engineering Limited,15238,7338,Not Applicable,
Department for Business Energy and Industrial Strategy,Intellectual Property Office,25/10/2016,Information Technology,IT Directorate,proAV Limited,162963,13444.4,Not Applicable,
Department for Business Energy and Industrial Strategy,Intellectual Property Office,13/10/2016,Information Technology,IT Directorate,Equal Experts UK Limited,INV-1873,15000,Not Applicable,
Department for Business Energy and Industrial Strategy,Intellectual Property Office,20/10/2016,Information Technology,IT Directorate,Anders + Kern UK Ltd,75884,828,Not Applicable,
Department for Business Energy and Industrial Strategy,Intellectual Property Office,13/10/2016,Information Technology,IT Directorate,Ventana Systems UK,AGK-160-036,730.38,Not Applicable,
Department for Business Energy and Industrial Strategy,Intellectual Property Office,14/10/2016,Telecoms,IT Directorate,Virgin Media,728127801-26AUG,60,Not Applicable,
Department for Business Energy and Industrial Strategy,Intellectual Property Office,14/10/2016,Telecoms,IT Directorate,Virgin Media,728127801-28SEP,60,Not Applicable,
Department for Business Energy and Industrial Strategy,Intellectual Property Office,28/10/2016,Information Technology,IT Directorate,JetBrains,INVCZ580710,573,Not Applicable,
Department for Business Energy and Industrial Strategy,Intellectual Property Office,06/10/2016,Travel & Subsistence,Patent Directorate,Personal expenses,ER136767,70.17,Not Applicable,
Department for Business Energy and Industrial Strategy,Intellectual Property Office,27/10/2016,Travel & Subsistence,Patent Directorate,Personal expenses,OS000000080,583.89,Not Applicable,
Department for Business Energy and Industrial Strategy,Intellectual Property Office,20/10/2016,Travel & Subsistence,Patent Directorate,Personal expenses,UK000000327,10,Not Applicable,
Department for Business Energy and Industrial Strategy,Intellectual Property Office,05/10/2016,Travel & Subsistence,Patent Directorate,Personal expenses,UK000000150,20,Not Applicable,
Department for Business Energy and Industrial Strategy,Intellectual Property Office,05/10/2016,Travel & Subsistence,Patent Directorate,Personal expenses,UK000000169,36.05,Not Applicable,
Department for Business Energy and Industrial Strategy,Intellectual Property Office,13/10/2016,Travel & Subsistence,Patent Directorate,Personal expenses,OS000000058,229.6,Not Applicable,
Department for Business Energy and Industrial Strategy,Intellectual Property Office,05/10/2016,Travel & Subsistence,Patent Directorate,Personal expenses,UK000000042,48.22,Not Applicable,
Department for Business Energy and Industrial Strategy,Intellectual Property Office,05/10/2016,Travel & Subsistence,Patent Directorate,Personal expenses,UK000000043,10,Not Applicable,
Department for Business Energy and Industrial Strategy,Intellectual Property Office,06/10/2016,Travel & Subsistence,Patent Directorate,Personal expenses,UK000000249,16.6,Not Applicable,
Department for Business Energy and Industrial Strategy,Intellectual Property Office,20/10/2016,Travel & Subsistence,Patent Directorate,Personal expenses,UK000000325,56.9,Not Applicable,
Department for Business Energy and Industrial Strategy,Intellectual Property Office,18/10/2016,Travel & Subsistence,Patent Directorate,Personal expenses,OS000000066,20,Not Applicable,
Department for Business Energy and Industrial Strategy,Intellectual Property Office,12/10/2016,Travel & Subsistence,Patent Directorate,Personal expenses,UK000000256,35,Not Applicable,
Department for Business Energy and Industrial Strategy,Intellectual Property Office,03/10/2016,Travel & Subsistence,Patent Directorate,Personal expenses,UK000000022,75.45,Not Applicable,
Department for Business Energy and Industrial Strategy,Intellectual Property Office,06/10/2016,Travel & Subsistence,Patent Directorate,Personal expenses,UK000000251,37.95,Not Applicable,
Department for Business Energy and Industrial Strategy,Intellectual Property Office,12/10/2016,Travel & Subsistence,Patent Directorate,Personal expenses,UK000000269,53.15,Not Applicable,
Department for Business Energy and Industrial Strategy,Intellectual Property Office,07/10/2016,Travel & Subsistence,Patent Directorate,Personal expenses,OS000000060,179.95,Not Applicable,
Department for Business Energy and Industrial Strategy,Intellectual Property Office,27/10/2016,Incorporations - Standard,Patent Directorate,Zennex Limited,J709208,100,Not Applicable,
Department for Business Energy and Industrial Strategy,Intellectual Property Office,12/10/2016,Incorporations - Standard,Patent Directorate,Salman Zayed Alharethi,K852212,210,Not Applicable,
Department for Business Energy and Industrial Strategy,Intellectual Property Office,10/10/2016,Incorporations - Standard,Patent Directorate,Thomas Melvin,J771850,150,Not Applicable,
Department for Business Energy and Industrial Strategy,Intellectual Property Office,12/10/2016,Incorporations - Standard,Patent Directorate,Symbol Technologies LLC,J77740,135,Not Applicable,
Department for Business Energy and Industrial Strategy,Intellectual Property Office,24/10/2016,Incorporations - Standard,Patent Directorate,Barbara White,J771287,50,Not Applicable,
Department for Business Energy and Industrial Strategy,Intellectual Property Office,24/10/2016,Incorporations - Standard,Patent Directorate,Jacqueline Pitman,J765216,150,Not Applicable,
Department for Business Energy and Industrial Strategy,Intellectual Property Office,24/10/2016,Incorporations - Standard,Patent Directorate,Dawn Michelle Wood,J777656,150,Not Applicable,
Department for Business Energy and Industrial Strategy,Intellectual Property Office,24/10/2016,Incorporations - Standard,Patent Directorate,Jennifer Cox,J776840,30,Not Applicable,
Department for Business Energy and Industrial Strategy,Intellectual Property Office,24/10/2016,Incorporations - Standard,Patent Directorate,Jennifer Cox,J776840/1,30,Not Applicable,
Department for Business Energy and Industrial Strategy,Intellectual Property Office,24/10/2016,Incorporations - Standard,Patent Directorate,Patrick Kavanagh,K858561,80,Not Applicable,
Department for Business Energy and Industrial Strategy,Intellectual Property Office,24/10/2016,Incorporations - Standard,Patent Directorate,Fofitec AG,J769950,135,Not Applicable,
Department for Business Energy and Industrial Strategy,Intellectual Property Office,06/10/2016,Office Supplies,Patent Directorate,British Library,139777370,3168.46,Not Applicable,
Department for Business Energy and Industrial Strategy,Intellectual Property Office,03/10/2016,Pay Costs,Patent Directorate,Brook Street (UK) Ltd,30940424,417.24,Not Applicable,
Department for Business Energy and Industrial Strategy,Intellectual Property Office,03/10/2016,Pay Costs,Patent Directorate,Brook Street (UK) Ltd,30940424,587.86,Not Applicable,
Department for Business Energy and Industrial Strategy,Intellectual Property Office,03/10/2016,Pay Costs,Patent Directorate,Brook Street (UK) Ltd,30940424,1040.3,Not Applicable,
Department for Business Energy and Industrial Strategy,Intellectual Property Office,03/10/2016,Pay Costs,Patent Directorate,Brook Street (UK) Ltd,30940424,521.54,Not Applicable,
Department for Business Energy and Industrial Strategy,Intellectual Property Office,03/10/2016,Pay Costs,Patent Directorate,Brook Street (UK) Ltd,30940424,503.54,Not Applicable,
Department for Business Energy and Industrial Strategy,Intellectual Property Office,03/10/2016,Pay Costs,Patent Directorate,Brook Street (UK) Ltd,30940424,3350.76,Not Applicable,
Department for Business Energy and Industrial Strategy,Intellectual Property Office,03/10/2016,Pay Costs,Patent Directorate,Brook Street (UK) Ltd,30940424,532.8,Not Applicable,
Department for Business Energy and Industrial Strategy,Intellectual Property Office,03/10/2016,Pay Costs,Patent Directorate,Brook Street (UK) Ltd,30940424,627.58,Not Applicable,
Department for Business Energy and Industrial Strategy,Intellectual Property Office,03/10/2016,Pay Costs,Patent Directorate,Brook Street (UK) Ltd,30940424,530.58,Not Applicable,
Department for Business Energy and Industrial Strategy,Intellectual Property Office,03/10/2016,Pay Costs,Patent Directorate,Brook Street (UK) Ltd,30940424,617.94,Not Applicable,
Department for Business Energy and Industrial Strategy,Intellectual Property Office,03/10/2016,Pay Costs,Patent Directorate,Brook Street (UK) Ltd,30940424,1071.8,Not Applicable,
Department for Business Energy and Industrial Strategy,Intellectual Property Office,19/10/2016,Pay Costs,Patent Directorate,Brook Street (UK) Ltd,30951091,3255.41,Not Applicable,
Department for Business Energy and Industrial Strategy,Intellectual Property Office,19/10/2016,Pay Costs,Patent Directorate,Brook Street (UK) Ltd,30951091,1047.4,Not Applicable,
Department for Business Energy and Industrial Strategy,Intellectual Property Office,19/10/2016,Pay Costs,Patent Directorate,Brook Street (UK) Ltd,30951091,1052.12,Not Applicable,
Department for Business Energy and Industrial Strategy,Intellectual Property Office,19/10/2016,Pay Costs,Patent Directorate,Brook Street (UK) Ltd,30951091,933.42,Not Applicable,
Department for Business Energy and Industrial Strategy,Intellectual Property Office,19/10/2016,Pay Costs,Patent Directorate,Brook Street (UK) Ltd,30951091,928.64,Not Applicable,
Department for Business Energy and Industrial Strategy,Intellectual Property Office,19/10/2016,Pay Costs,Patent Directorate,Brook Street (UK) Ltd,30951091,514.6,Not Applicable,
Department for Business Energy and Industrial Strategy,Intellectual Property Office,19/10/2016,Pay Costs,Patent Directorate,Brook Street (UK) Ltd,30951091,587.86,Not Applicable,
Department for Business Energy and Industrial Strategy,Intellectual Property Office,19/10/2016,Pay Costs,Patent Directorate,Brook Street (UK) Ltd,30951091,933.74,Not Applicable,
Department for Business Energy and Industrial Strategy,Intellectual Property Office,19/10/2016,Pay Costs,Patent Directorate,Brook Street (UK) Ltd,30951091,627.58,Not Applicable,
Department for Business Energy and Industrial Strategy,Intellectual Property Office,19/10/2016,Pay Costs,Patent Directorate,Brook Street (UK) Ltd,30951091,503.54,Not Applicable,
Department for Business Energy and Industrial Strategy,Intellectual Property Office,14/10/2016,Pay Costs,Patent Directorate,Brook Street (UK) Ltd,30961537,961.1,Not Applicable,
Department for Business Energy and Industrial Strategy,Intellectual Property Office,14/10/2016,Pay Costs,Patent Directorate,Brook Street (UK) Ltd,30961537,514.6,Not Applicable,
Department for Business Energy and Industrial Strategy,Intellectual Property Office,14/10/2016,Pay Costs,Patent Directorate,Brook Street (UK) Ltd,30961537,587.86,Not Applicable,
Department for Business Energy and Industrial Strategy,Intellectual Property Office,14/10/2016,Pay Costs,Patent Directorate,Brook Street (UK) Ltd,30961537,940.84,Not Applicable,
Department for Business Energy and Industrial Strategy,Intellectual Property Office,14/10/2016,Pay Costs,Patent Directorate,Brook Street (UK) Ltd,30961537,500.47,Not Applicable,
Department for Business Energy and Industrial Strategy,Intellectual Property Office,14/10/2016,Pay Costs,Patent Directorate,Brook Street (UK) Ltd,30961537,503.54,Not Applicable,
Department for Business Energy and Industrial Strategy,Intellectual Property Office,14/10/2016,Pay Costs,Patent Directorate,Brook Street (UK) Ltd,30961537,3660.59,Not Applicable,
Department for Business Energy and Industrial Strategy,Intellectual Property Office,14/10/2016,Pay Costs,Patent Directorate,Brook Street (UK) Ltd,30961537,1047.4,Not Applicable,
Department for Business Energy and Industrial Strategy,Intellectual Property Office,14/10/2016,Pay Costs,Patent Directorate,Brook Street (UK) Ltd,30961537,1052.12,Not Applicable,
Department for Business Energy and Industrial Strategy,Intellectual Property Office,14/10/2016,Pay Costs,Patent Directorate,Brook Street (UK) Ltd,30961537,711.46,Not Applicable,
Department for Business Energy and Industrial Strategy,Intellectual Property Office,25/10/2016,Pay Costs,Patent Directorate,Brook Street (UK) Ltd,30972164,891.11,Not Applicable,
Department for Business Energy and Industrial Strategy,Intellectual Property Office,25/10/2016,Pay Costs,Patent Directorate,Brook Street (UK) Ltd,30972164,635.52,Not Applicable,
Department for Business Energy and Industrial Strategy,Intellectual Property Office,25/10/2016,Pay Costs,Patent Directorate,Brook Street (UK) Ltd,30972164,530.58,Not Applicable,
Department for Business Energy and Industrial Strategy,Intellectual Property Office,25/10/2016,Pay Costs,Patent Directorate,Brook Street (UK) Ltd,30972164,503.54,Not Applicable,
Department for Business Energy and Industrial Strategy,Intellectual Property Office,25/10/2016,Pay Costs,Patent Directorate,Brook Street (UK) Ltd,30972164,2402.44,Not Applicable,
Department for Business Energy and Industrial Strategy,Intellectual Property Office,25/10/2016,Pay Costs,Patent Directorate,Brook Street (UK) Ltd,30972164,1040.3,Not Applicable,
Department for Business Energy and Industrial Strategy,Intellectual Property Office,25/10/2016,Pay Costs,Patent Directorate,Brook Street (UK) Ltd,30972164,521.54,Not Applicable,
Department for Business Energy and Industrial Strategy,Intellectual Property Office,25/10/2016,Pay Costs,Patent Directorate,Brook Street (UK) Ltd,30972164,503.54,Not Applicable,
Department for Business Energy and Industrial Strategy,Intellectual Property Office,25/10/2016,Pay Costs,Patent Directorate,Brook Street (UK) Ltd,30972164,2133.87,Not Applicable,
Department for Business Energy and Industrial Strategy,Intellectual Property Office,25/10/2016,Pay Costs,Patent Directorate,Brook Street (UK) Ltd,30972164,525.7,Not Applicable,
Department for Business Energy and Industrial Strategy,Intellectual Property Office,25/10/2016,Pay Costs,Patent Directorate,Brook Street (UK) Ltd,30972164,357.48,Not Applicable,
Department for Business Energy and Industrial Strategy,Intellectual Property Office,28/10/2016,Pay Costs,Patent Directorate,Brook Street (UK) Ltd,30983403,503.54,Not Applicable,
Department for Business Energy and Industrial Strategy,Intellectual Property Office,28/10/2016,Pay Costs,Patent Directorate,Brook Street (UK) Ltd,30983403,2469.5,Not Applicable,
Department for Business Energy and Industrial Strategy,Intellectual Property Office,28/10/2016,Pay Costs,Patent Directorate,Brook Street (UK) Ltd,30983403,1040.3,Not Applicable,
Department for Business Energy and Industrial Strategy,Intellectual Property Office,28/10/2016,Pay Costs,Patent Directorate,Brook Street (UK) Ltd,30983403,521.54,Not Applicable,
Department for Business Energy and Industrial Strategy,Intellectual Property Office,28/10/2016,Pay Costs,Patent Directorate,Brook Street (UK) Ltd,30983403,503.54,Not Applicable,
Department for Business Energy and Industrial Strategy,Intellectual Property Office,28/10/2016,Pay Costs,Patent Directorate,Brook Street (UK) Ltd,30983403,2261.69,Not Applicable,
Department for Business Energy and Industrial Strategy,Intellectual Property Office,28/10/2016,Pay Costs,Patent Directorate,Brook Street (UK) Ltd,30983403,322.64,Not Applicable,
Department for Business Energy and Industrial Strategy,Intellectual Property Office,28/10/2016,Pay Costs,Patent Directorate,Brook Street (UK) Ltd,30983403,357.48,Not Applicable,
Department for Business Energy and Industrial Strategy,Intellectual Property Office,28/10/2016,Pay Costs,Patent Directorate,Brook Street (UK) Ltd,30983403,1047.4,Not Applicable,
Department for Business Energy and Industrial Strategy,Intellectual Property Office,28/10/2016,Pay Costs,Patent Directorate,Brook Street (UK) Ltd,30983403,448.84,Not Applicable,
Department for Business Energy and Industrial Strategy,Intellectual Property Office,28/10/2016,Pay Costs,Patent Directorate,Brook Street (UK) Ltd,30983403,430.2,Not Applicable,
Department for Business Energy and Industrial Strategy,Intellectual Property Office,06/10/2016,Travel & Subsistence,Patent Directorate,Zenith,RHI01635509,77.98,Not Applicable,
Department for Business Energy and Industrial Strategy,Intellectual Property Office,25/10/2016,Travel & Subsistence,Patent Directorate,Zenith,RHI01642543,56.87,Not Applicable,
Department for Business Energy and Industrial Strategy,Intellectual Property Office,21/10/2016,Travel & Subsistence,Patent Directorate,Zenith,RHI01642544,83.62,Not Applicable,
Department for Business Energy and Industrial Strategy,Intellectual Property Office,21/10/2016,Travel & Subsistence,Patent Directorate,Zenith,RHI01642547,129.82,Not Applicable,
Department for Business Energy and Industrial Strategy,Intellectual Property Office,20/10/2016,Travel & Subsistence,Patent Directorate,Zenith,RHI01644653,56.87,Not Applicable,
Department for Business Energy and Industrial Strategy,Intellectual Property Office,31/10/2016,Travel & Subsistence,Patent Directorate,Zenith,RHI01646591,56.87,Not Applicable,
Department for Business Energy and Industrial Strategy,Intellectual Property Office,31/10/2016,Travel & Subsistence,Patent Directorate,Zenith,RHI01646596,59.33,Not Applicable,
Department for Business Energy and Industrial Strategy,Intellectual Property Office,07/10/2016,Information Technology,Patent Directorate,Lexis-Nexis UK,1609455686,2883.3,Not Applicable,
Department for Business Energy and Industrial Strategy,Intellectual Property Office,25/10/2016,Information Technology,Patent Directorate,Lexis-Nexis UK,I06U61083,7685.04,Not Applicable,
Department for Business Energy and Industrial Strategy,Intellectual Property Office,28/10/2016,Information Technology,Patent Directorate,Lexis-Nexis UK,I06U64196,17299.8,Not Applicable,
Department for Business Energy and Industrial Strategy,Intellectual Property Office,03/10/2016,Office Supplies,Patent Directorate,Mitie Facilities Services Ltd,100-91293357,22.55,Not Applicable,
Department for Business Energy and Industrial Strategy,Intellectual Property Office,31/10/2016,Information Technology,Patent Directorate,Thomson Reuters (Professional) Ltd,834952411,140582.4,Not Applicable,
Department for Business Energy and Industrial Strategy,Intellectual Property Office,27/10/2016,Information Technology,Patent Directorate,Thomson Reuters (Professional) Ltd,6800314726,66131.09,Not Applicable,
Department for Business Energy and Industrial Strategy,Intellectual Property Office,28/10/2016,Staff Costs,Patent Directorate,University of  South Wales,OP-I033466CR,-658.5,Not Applicable,
Department for Business Energy and Industrial Strategy,Intellectual Property Office,19/10/2016,Staff Costs,Patent Directorate,University of  South Wales,OP-I033810,11820,Not Applicable,
Department for Business Energy and Industrial Strategy,Intellectual Property Office,20/10/2016,Staff Costs,Patent Directorate,University of  South Wales,OP-I033846,1950,Not Applicable,
Department for Business Energy and Industrial Strategy,Intellectual Property Office,05/10/2016,Travel & Subsistence,Patent Directorate,Veezu Ltd T/A Dragon Taxis (Newport),1274,7.8,Not Applicable,
Department for Business Energy and Industrial Strategy,Intellectual Property Office,05/10/2016,Travel & Subsistence,Patent Directorate,Veezu Ltd T/A Dragon Taxis (Newport),1274,7.8,Not Applicable,
Department for Business Energy and Industrial Strategy,Intellectual Property Office,05/10/2016,Travel & Subsistence,Patent Directorate,Veezu Ltd T/A Dragon Taxis (Newport),1274,11.4,Not Applicable,
Department for Business Energy and Industrial Strategy,Intellectual Property Office,31/10/2016,Office Machinery,Patent Directorate,Xerox Finance,97075593,3543.7,Not Applicable,
Department for Business Energy and Industrial Strategy,Intellectual Property Office,17/10/2016,Legal & Hearings,Patent Directorate,Government Legal Department,433573,7922.47,Not Applicable,
Department for Business Energy and Industrial Strategy,Intellectual Property Office,13/10/2016,Staff Costs,Patent Directorate,The Clive Davis Partnership Ltd.,CDSC/2554,1140,Not Applicable,
Department for Business Energy and Industrial Strategy,Intellectual Property Office,19/10/2016,Information Technology,Patent Directorate,European Patent Office,40262986,134956.62,Not Applicable,
Department for Business Energy and Industrial Strategy,Intellectual Property Office,19/10/2016,Information Technology,Patent Directorate,STN,9340302182,13216.06,Not Applicable,
Department for Business Energy and Industrial Strategy,Intellectual Property Office,21/10/2016,Staff Costs,Patent Directorate,Chartered Institute of Patent Attorneys,17466,30,Not Applicable,
Department for Business Energy and Industrial Strategy,Intellectual Property Office,21/10/2016,Staff Costs,Patent Directorate,Chartered Institute of Patent Attorneys,17467,54,Not Applicable,
Department for Business Energy and Industrial Strategy,Intellectual Property Office,21/10/2016,Staff Costs,Patent Directorate,Chartered Institute of Patent Attorneys,17468,48,Not Applicable,
Department for Business Energy and Industrial Strategy,Intellectual Property Office,21/10/2016,Staff Costs,Patent Directorate,Chartered Institute of Patent Attorneys,17469,54,Not Applicable,
Department for Business Energy and Industrial Strategy,Intellectual Property Office,21/10/2016,Staff Costs,Patent Directorate,Chartered Institute of Patent Attorneys,17471,48,Not Applicable,
Department for Business Energy and Industrial Strategy,Intellectual Property Office,19/10/2016,Office Supplies,Patent Directorate,Thomson Scientific Inc,834918699,41.67,Not Applicable,
Department for Business Energy and Industrial Strategy,Intellectual Property Office,06/10/2016,Pay Costs,Patent Directorate,HM REVENUE AND CUSTOMS,XD006727045975,7772.12,Not Applicable,
Department for Business Energy and Industrial Strategy,Intellectual Property Office,18/10/2016,Office Supplies,Patent Directorate,Elsevier BV,5913862X,3796,Not Applicable,
Department for Business Energy and Industrial Strategy,Intellectual Property Office,14/10/2016,Staff Costs,People Places & Services Directorate,Personal expenses,AH000000021,28,Not Applicable,
Department for Business Energy and Industrial Strategy,Intellectual Property Office,12/10/2016,Travel & Subsistence,People Places & Services Directorate,Personal expenses,OS000000061,117.03,Not Applicable,
Department for Business Energy and Industrial Strategy,Intellectual Property Office,03/10/2016,Travel & Subsistence,People Places & Services Directorate,Personal expenses,UK000000210,38.4,Not Applicable,
Department for Business Energy and Industrial Strategy,Intellectual Property Office,21/10/2016,Travel & Subsistence,People Places & Services Directorate,Personal expenses,UK000000349,76.86,Not Applicable,
Department for Business Energy and Industrial Strategy,Intellectual Property Office,19/10/2016,Staff Costs,People Places & Services Directorate,John Alty,DDSEP16,510,Not Applicable,
Department for Business Energy and Industrial Strategy,Intellectual Property Office,27/10/2016,Travel & Subsistence,People Places & Services Directorate,Personal expenses,UK000000368,16.89,Not Applicable,
Department for Business Energy and Industrial Strategy,Intellectual Property Office,05/10/2016,Staff Costs,People Places & Services Directorate,Personal expenses,AH000000015,200,Not Applicable,
Department for Business Energy and Industrial Strategy,Intellectual Property Office,03/10/2016,Miscellaneous Expenses General,People Places & Services Directorate,Paul J Evans,EXPET2,20,Not Applicable,
Department for Business Energy and Industrial Strategy,Intellectual Property Office,03/10/2016,Travel & Subsistence,People Places & Services Directorate,Personal expenses,UK000000223,65,Not Applicable,
Department for Business Energy and Industrial Strategy,Intellectual Property Office,31/10/2016,Travel & Subsistence,People Places & Services Directorate,Glyn Hughes,EX GH,9,Not Applicable,
Department for Business Energy and Industrial Strategy,Intellectual Property Office,27/10/2016,Miscellaneous Expenses General,People Places & Services Directorate,Steven Chadwell,EYE TEST,20,Not Applicable,
Department for Business Energy and Industrial Strategy,Intellectual Property Office,05/10/2016,Travel & Subsistence,People Places & Services Directorate,Personal expenses,UK000000235,8.8,Not Applicable,
Department for Business Energy and Industrial Strategy,Intellectual Property Office,05/10/2016,Travel & Subsistence,People Places & Services Directorate,Personal expenses,UK000000236,36,Not Applicable,
Department for Business Energy and Industrial Strategy,Intellectual Property Office,21/10/2016,Travel & Subsistence,People Places & Services Directorate,Personal expenses,UK000000345,39,Not Applicable,
Department for Business Energy and Industrial Strategy,Intellectual Property Office,27/10/2016,Travel & Subsistence,People Places & Services Directorate,Personal expenses,UK000000347,18.2,Not Applicable,
Department for Business Energy and Industrial Strategy,Intellectual Property Office,14/10/2016,Staff Costs,People Places & Services Directorate,Personal expenses,AH000000018,28,Not Applicable,
Department for Business Energy and Industrial Strategy,Intellectual Property Office,27/10/2016,Staff Costs,People Places & Services Directorate,Personal expenses,AH000000003,157.56,Not Applicable,
Department for Business Energy and Industrial Strategy,Intellectual Property Office,12/10/2016,Travel & Subsistence,People Places & Services Directorate,Personal expenses,UK000000263,5.14,Not Applicable,
Department for Business Energy and Industrial Strategy,Intellectual Property Office,21/10/2016,Travel & Subsistence,People Places & Services Directorate,Personal expenses,UK000000034,119.7,Not Applicable,
Department for Business Energy and Industrial Strategy,Intellectual Property Office,03/10/2016,Travel & Subsistence,People Places & Services Directorate,Personal expenses,UK000000204,57.9,Not Applicable,
Department for Business Energy and Industrial Strategy,Intellectual Property Office,13/10/2016,Travel & Subsistence,People Places & Services Directorate,Personal expenses,UK000000275,10,Not Applicable,
Department for Business Energy and Industrial Strategy,Intellectual Property Office,03/10/2016,Staff Costs,People Places & Services Directorate,Personal expenses,AH000000010,90,Not Applicable,
Department for Business Energy and Industrial Strategy,Intellectual Property Office,06/10/2016,Travel & Subsistence,People Places & Services Directorate,Personal expenses,UK000000248,42.6,Not Applicable,
Department for Business Energy and Industrial Strategy,Intellectual Property Office,14/10/2016,Travel & Subsistence,People Places & Services Directorate,Personal expenses,UK000000290,124.45,Not Applicable,
Department for Business Energy and Industrial Strategy,Intellectual Property Office,14/10/2016,Staff Costs,People Places & Services Directorate,Mia-Rose Lewis,DSC,50,Not Applicable,
Department for Business Energy and Industrial Strategy,Intellectual Property Office,27/10/2016,Staff Costs,People Places & Services Directorate,Personal expenses,AH000000004,25,Not Applicable,
Department for Business Energy and Industrial Strategy,Intellectual Property Office,14/10/2016,Staff Costs,People Places & Services Directorate,Caitlin Devlin,DSC,200,Not Applicable,
Department for Business Energy and Industrial Strategy,Intellectual Property Office,19/10/2016,Staff Costs,People Places & Services Directorate,Personal expenses,AH000000020,175,Not Applicable,
Department for Business Energy and Industrial Strategy,Intellectual Property Office,20/10/2016,Miscellaneous Expenses General,People Places & Services Directorate,Personal expenses,AH000000026,14.99,Not Applicable,
Department for Business Energy and Industrial Strategy,Intellectual Property Office,18/10/2016,Travel & Subsistence,People Places & Services Directorate,Personal expenses,UK000000286,39.25,Not Applicable,
Department for Business Energy and Industrial Strategy,Intellectual Property Office,05/10/2016,Travel & Subsistence,People Places & Services Directorate,Personal expenses,UK000000153,33.95,Not Applicable,
Department for Business Energy and Industrial Strategy,Intellectual Property Office,03/10/2016,Travel & Subsistence,People Places & Services Directorate,Personal expenses,UK000000051,7.65,Not Applicable,
Department for Business Energy and Industrial Strategy,Intellectual Property Office,03/10/2016,Travel & Subsistence,People Places & Services Directorate,Personal expenses,UK000000069,34.64,Not Applicable,
Department for Business Energy and Industrial Strategy,Intellectual Property Office,03/10/2016,Travel & Subsistence,People Places & Services Directorate,Personal expenses,UK000000144,12.95,Not Applicable,
Department for Business Energy and Industrial Strategy,Intellectual Property Office,05/10/2016,Travel & Subsistence,People Places & Services Directorate,Personal expenses,UK000000205,10.8,Not Applicable,
Department for Business Energy and Industrial Strategy,Intellectual Property Office,21/10/2016,Travel & Subsistence,People Places & Services Directorate,Personal expenses,UK000000133,4.85,Not Applicable,
Department for Business Energy and Industrial Strategy,Intellectual Property Office,21/10/2016,Travel & Subsistence,People Places & Services Directorate,Personal expenses,UK000000335,30,Not Applicable,
Department for Business Energy and Industrial Strategy,Intellectual Property Office,03/10/2016,Miscellaneous Expenses General,People Places & Services Directorate,Natasha J Chick,EXPET,20,Not Applicable,
Department for Business Energy and Industrial Strategy,Intellectual Property Office,12/10/2016,Staff Costs,People Places & Services Directorate,Personal expenses,AH000000017,125,Not Applicable,
Department for Business Energy and Industrial Strategy,Intellectual Property Office,19/10/2016,Travel & Subsistence,People Places & Services Directorate,Personal expenses,UK000000310,82.5,Not Applicable,
Department for Business Energy and Industrial Strategy,Intellectual Property Office,19/10/2016,Travel & Subsistence,People Places & Services Directorate,Personal expenses,UK000000309,89.54,Not Applicable,
Department for Business Energy and Industrial Strategy,Intellectual Property Office,19/10/2016,Travel & Subsistence,People Places & Services Directorate,Personal expenses,UK000000130,10.8,Not Applicable,
Department for Business Energy and Industrial Strategy,Intellectual Property Office,14/10/2016,Staff Costs,People Places & Services Directorate,Personal expenses,AH000000023,130,Not Applicable,
Department for Business Energy and Industrial Strategy,Intellectual Property Office,18/10/2016,Travel & Subsistence,People Places & Services Directorate,Personal expenses,UK000000299,128.6,Not Applicable,
Department for Business Energy and Industrial Strategy,Intellectual Property Office,03/10/2016,Travel & Subsistence,People Places & Services Directorate,Personal expenses,UK000000181,25,Not Applicable,
Department for Business Energy and Industrial Strategy,Intellectual Property Office,13/10/2016,Travel & Subsistence,People Places & Services Directorate,Personal expenses,UK000000272,36.7,Not Applicable,
Department for Business Energy and Industrial Strategy,Intellectual Property Office,03/10/2016,Travel & Subsistence,People Places & Services Directorate,Personal expenses,UK000000128,29.63,Not Applicable,
Department for Business Energy and Industrial Strategy,Intellectual Property Office,06/10/2016,Miscellaneous Expenses General,People Places & Services Directorate,OFCOM,78012844,100,Not Applicable,
Department for Business Energy and Industrial Strategy,Intellectual Property Office,19/10/2016,Staff Costs,People Places & Services Directorate,Michelle Llewellyn,DSC,25,Not Applicable,
Department for Business Energy and Industrial Strategy,Intellectual Property Office,18/10/2016,Staff Costs,People Places & Services Directorate,Acorn Recruitment Ltd,APS02910,225.5,Not Applicable,
Department for Business Energy and Industrial Strategy,Intellectual Property Office,20/10/2016,Accommodation,People Places & Services Directorate,Applied Products,516289,150,Not Applicable,
Department for Business Energy and Industrial Strategy,Intellectual Property Office,20/10/2016,Accommodation,People Places & Services Directorate,Applied Products,516296,144,Not Applicable,
Department for Business Energy and Industrial Strategy,Intellectual Property Office,28/10/2016,Staff Costs,People Places & Services Directorate,British Computer Society,1386382,530.1,Not Applicable,
Department for Business Energy and Industrial Strategy,Intellectual Property Office,03/10/2016,Staff Costs,People Places & Services Directorate,British Red Cross,N1069098,418.8,Not Applicable,
Department for Business Energy and Industrial Strategy,Intellectual Property Office,25/10/2016,Staff Costs,People Places & Services Directorate,British Red Cross,N1072062,322.8,Not Applicable,
Department for Business Energy and Industrial Strategy,Intellectual Property Office,26/10/2016,Staff Costs,People Places & Services Directorate,British Red Cross,N1075218,322.8,Not Applicable,
Department for Business Energy and Industrial Strategy,Intellectual Property Office,27/10/2016,Staff Costs,People Places & Services Directorate,British Red Cross,N1075514,322.8,Not Applicable,
Department for Business Energy and Industrial Strategy,Intellectual Property Office,03/10/2016,Pay Costs,People Places & Services Directorate,Brook Street (UK) Ltd,30940424,215.1,Not Applicable,
Department for Business Energy and Industrial Strategy,Intellectual Property Office,19/10/2016,Pay Costs,People Places & Services Directorate,Brook Street (UK) Ltd,30951091,541.33,Not Applicable,
Department for Business Energy and Industrial Strategy,Intellectual Property Office,14/10/2016,Pay Costs,People Places & Services Directorate,Brook Street (UK) Ltd,30961537,530.58,Not Applicable,
Department for Business Energy and Industrial Strategy,Intellectual Property Office,25/10/2016,Pay Costs,People Places & Services Directorate,Brook Street (UK) Ltd,30972164,552.08,Not Applicable,
Department for Business Energy and Industrial Strategy,Intellectual Property Office,28/10/2016,Pay Costs,People Places & Services Directorate,Brook Street (UK) Ltd,30983403,530.58,Not Applicable,
Department for Business Energy and Industrial Strategy,Intellectual Property Office,17/10/2016,Accommodation,People Places & Services Directorate,Caerphilly County Borough Council,82968769,434,Not Applicable,
Department for Business Energy and Industrial Strategy,Intellectual Property Office,18/10/2016,Accommodation,People Places & Services Directorate,Caerphilly County Borough Council,510317691-11MAR,28917,Not Applicable,
Department for Business Energy and Industrial Strategy,Intellectual Property Office,12/10/2016,Staff Costs,People Places & Services Directorate,Capital Law LLP,20036084,36,Not Applicable,
Department for Business Energy and Industrial Strategy,Intellectual Property Office,05/10/2016,Legal & Hearings,People Places & Services Directorate,Capital Law LLP,20036116,6852,Not Applicable,
Department for Business Energy and Industrial Strategy,Intellectual Property Office,25/10/2016,Accommodation,People Places & Services Directorate,Corona Energy,11484822,837.46,Not Applicable,
Department for Business Energy and Industrial Strategy,Intellectual Property Office,17/10/2016,Accommodation,People Places & Services Directorate,Corona Energy,11484825,1452.58,Not Applicable,
Department for Business Energy and Industrial Strategy,Intellectual Property Office,14/10/2016,Postage & Delivery Costs,People Places & Services Directorate,Days Rental,1639345,252,Not Applicable,
Department for Business Energy and Industrial Strategy,Intellectual Property Office,26/10/2016,Postage & Delivery Costs,People Places & Services Directorate,Days Rental,1644746,252,Not Applicable,
Department for Business Energy and Industrial Strategy,Intellectual Property Office,17/10/2016,Accommodation,People Places & Services Directorate,Department For Business Innovation & Ski,6.1511E+11,15107.11,Not Applicable,
Department for Business Energy and Industrial Strategy,Intellectual Property Office,25/10/2016,Accommodation,People Places & Services Directorate,Department For Business Innovation & Ski,6.1511E+11,19623.46,Not Applicable,
Department for Business Energy and Industrial Strategy,Intellectual Property Office,06/10/2016,Postage & Delivery Costs,People Places & Services Directorate,DHL International (UK) Ltd,BRS9811357,6304.33,Not Applicable,
Department for Business Energy and Industrial Strategy,Intellectual Property Office,19/10/2016,Miscellaneous Expenses General,People Places & Services Directorate,G Austin,SB 19.10.16 3,229.79,Not Applicable,
Department for Business Energy and Industrial Strategy,Intellectual Property Office,06/10/2016,Accommodation,People Places & Services Directorate,Griffiths Signs & Equipment Co,91676,30,Not Applicable,
Department for Business Energy and Industrial Strategy,Intellectual Property Office,10/10/2016,Information Technology,People Places & Services Directorate,Healthy Workstations Ltd,29613,232.8,Not Applicable,
Department for Business Energy and Industrial Strategy,Intellectual Property Office,25/10/2016,Accommodation,People Places & Services Directorate,Healthy Workstations Ltd,29662,601.89,Not Applicable,
Department for Business Energy and Industrial Strategy,Intellectual Property Office,04/10/2016,Accommodation,People Places & Services Directorate,Kemp Construction Ltd,6229,8564.4,Not Applicable,
Department for Business Energy and Industrial Strategy,Intellectual Property Office,17/10/2016,Accommodation,People Places & Services Directorate,Kemp Construction Ltd,6231,4777.2,Not Applicable,
Department for Business Energy and Industrial Strategy,Intellectual Property Office,13/10/2016,Staff Costs,People Places & Services Directorate,Knowledge Academy,SO1108766,1434,Not Applicable,
Department for Business Energy and Industrial Strategy,Intellectual Property Office,06/10/2016,Travel & Subsistence,People Places & Services Directorate,Zenith,RHI01635512,58.32,Not Applicable,
Department for Business Energy and Industrial Strategy,Intellectual Property Office,25/10/2016,Travel & Subsistence,People Places & Services Directorate,Zenith,RHI01642548,68.23,Not Applicable,
Department for Business Energy and Industrial Strategy,Intellectual Property Office,25/10/2016,Staff Costs,People Places & Services Directorate,Zenith,RHI01642549,62.23,Not Applicable,
Department for Business Energy and Industrial Strategy,Intellectual Property Office,31/10/2016,Postage & Delivery Costs,People Places & Services Directorate,Zenith,RHI01646597,139.94,Not Applicable,
Department for Business Energy and Industrial Strategy,Intellectual Property Office,03/10/2016,Office Supplies,People Places & Services Directorate,Menzies Distribution Ltd t/a Jones Yarre,256454,259.58,Not Applicable,
Department for Business Energy and Industrial Strategy,Intellectual Property Office,31/10/2016,Pay Costs,People Places & Services Directorate,Ministry of Defence,7471254,753.36,Not Applicable,
Department for Business Energy and Industrial Strategy,Intellectual Property Office,31/10/2016,Pay Costs,People Places & Services Directorate,Ministry of Defence,7471255,753.35,Not Applicable,
Department for Business Energy and Industrial Strategy,Intellectual Property Office,31/10/2016,Pay Costs,People Places & Services Directorate,Ministry of Defence,7471256,753.36,Not Applicable,
Department for Business Energy and Industrial Strategy,Intellectual Property Office,31/10/2016,Pay Costs,People Places & Services Directorate,Ministry of Defence,7471257,753.36,Not Applicable,
Department for Business Energy and Industrial Strategy,Intellectual Property Office,03/10/2016,Office Supplies,People Places & Services Directorate,Mitie Facilities Services Ltd,100-91293357,33.6,Not Applicable,
Department for Business Energy and Industrial Strategy,Intellectual Property Office,03/10/2016,Miscellaneous Expenses General,People Places & Services Directorate,Mitie Facilities Services Ltd,100-91293357,1317.18,Not Applicable,
Department for Business Energy and Industrial Strategy,Intellectual Property Office,05/10/2016,Staff Costs,People Places & Services Directorate,MyCSP Ltd,7897,1548,Not Applicable,
Department for Business Energy and Industrial Strategy,Intellectual Property Office,03/10/2016,Postage & Delivery Costs,People Places & Services Directorate,Neopost Finance Ltd,2016071741,357.23,Not Applicable,
Department for Business Energy and Industrial Strategy,Intellectual Property Office,14/10/2016,Postage & Delivery Costs,People Places & Services Directorate,Neopost Ltd,92246395,95.38,Not Applicable,
Department for Business Energy and Industrial Strategy,Intellectual Property Office,28/10/2016,Pay Costs,People Places & Services Directorate,Office for National Statistics,1032274,662,Not Applicable,
Department for Business Energy and Industrial Strategy,Intellectual Property Office,28/10/2016,Pay Costs,People Places & Services Directorate,Office for National Statistics,1032275,662,Not Applicable,
Department for Business Energy and Industrial Strategy,Intellectual Property Office,28/10/2016,Pay Costs,People Places & Services Directorate,Office for National Statistics,1032276,298,Not Applicable,
Department for Business Energy and Industrial Strategy,Intellectual Property Office,06/10/2016,Miscellaneous Expenses General,People Places & Services Directorate,C2W Support,33586,360,Not Applicable,
Department for Business Energy and Industrial Strategy,Intellectual Property Office,04/10/2016,Miscellaneous Expenses General,People Places & Services Directorate,C2W Support,33608,1794.51,Not Applicable,
Department for Business Energy and Industrial Strategy,Intellectual Property Office,20/10/2016,Postage & Delivery Costs,People Places & Services Directorate,Parcelforce Worldwide,9053145730,1558.29,Not Applicable,
Department for Business Energy and Industrial Strategy,Intellectual Property Office,17/10/2016,Postage & Delivery Costs,People Places & Services Directorate,Royal Mail,9053114789,1541.77,Not Applicable,
Department for Business Energy and Industrial Strategy,Intellectual Property Office,03/10/2016,Postage & Delivery Costs,People Places & Services Directorate,Royal Mail,9053031969,1461.92,Not Applicable,
Department for Business Energy and Industrial Strategy,Intellectual Property Office,20/10/2016,Postage & Delivery Costs,People Places & Services Directorate,Royal Mail,9053128343,7.7,Not Applicable,
Department for Business Energy and Industrial Strategy,Intellectual Property Office,27/10/2016,Accommodation,People Places & Services Directorate,Senator International Ltd,S01335208,329.1,Not Applicable,
Department for Business Energy and Industrial Strategy,Intellectual Property Office,20/10/2016,Accommodation,People Places & Services Directorate,Senator International Ltd,S01335761,348.98,Not Applicable,
Department for Business Energy and Industrial Strategy,Intellectual Property Office,18/10/2016,Accommodation,People Places & Services Directorate,Senator International Ltd,S01337998,552.6,Not Applicable,
Department for Business Energy and Industrial Strategy,Intellectual Property Office,28/10/2016,Accommodation,People Places & Services Directorate,Senator International Ltd,S01337999,552.6,Not Applicable,
Department for Business Energy and Industrial Strategy,Intellectual Property Office,18/10/2016,Accommodation,People Places & Services Directorate,Senator International Ltd,S01339449,31.32,Not Applicable,
Department for Business Energy and Industrial Strategy,Intellectual Property Office,28/10/2016,Accommodation,People Places & Services Directorate,Senator International Ltd,S01339450,31.32,Not Applicable,
Department for Business Energy and Industrial Strategy,Intellectual Property Office,03/10/2016,Staff Costs,People Places & Services Directorate,Teamworks,2685-16-IPO-SUP-,135,Not Applicable,
Department for Business Energy and Industrial Strategy,Intellectual Property Office,10/10/2016,Accommodation,People Places & Services Directorate,Thomas Waste Management Ltd,160938,324,Not Applicable,
Department for Business Energy and Industrial Strategy,Intellectual Property Office,25/10/2016,Accommodation,People Places & Services Directorate,Thomas Waste Management Ltd,161473,648,Not Applicable,
Department for Business Energy and Industrial Strategy,Intellectual Property Office,25/10/2016,Office Machinery,People Places & Services Directorate,Total Print Finishing Services Ltd,38774,336,Not Applicable,
Department for Business Energy and Industrial Strategy,Intellectual Property Office,24/10/2016,Accommodation,People Places & Services Directorate,Total Security Protection Ltd,201776,7256.4,Not Applicable,
Department for Business Energy and Industrial Strategy,Intellectual Property Office,28/10/2016,Accommodation,People Places & Services Directorate,Total Security Protection Ltd,28897,1701.9,Not Applicable,
Department for Business Energy and Industrial Strategy,Intellectual Property Office,05/10/2016,Travel & Subsistence,People Places & Services Directorate,Veezu Ltd T/A Dragon Taxis (Newport),1274,11.64,Not Applicable,
Department for Business Energy and Industrial Strategy,Intellectual Property Office,05/10/2016,Travel & Subsistence,People Places & Services Directorate,Veezu Ltd T/A Dragon Taxis (Newport),1274,7.8,Not Applicable,
Department for Business Energy and Industrial Strategy,Intellectual Property Office,05/10/2016,Travel & Subsistence,People Places & Services Directorate,Veezu Ltd T/A Dragon Taxis (Newport),1274,7.8,Not Applicable,
Department for Business Energy and Industrial Strategy,Intellectual Property Office,05/10/2016,Travel & Subsistence,People Places & Services Directorate,Veezu Ltd T/A Dragon Taxis (Newport),1274,27,Not Applicable,
Department for Business Energy and Industrial Strategy,Intellectual Property Office,05/10/2016,Travel & Subsistence,People Places & Services Directorate,Veezu Ltd T/A Dragon Taxis (Newport),1274,7.8,Not Applicable,
Department for Business Energy and Industrial Strategy,Intellectual Property Office,14/10/2016,Office Machinery,People Places & Services Directorate,Xerox (UK) Ltd,1606117294,8050.21,Not Applicable,
Department for Business Energy and Industrial Strategy,Intellectual Property Office,14/10/2016,Office Machinery,People Places & Services Directorate,Xerox (UK) Ltd,1606117295,5209.99,Not Applicable,
Department for Business Energy and Industrial Strategy,Intellectual Property Office,04/10/2016,Office Machinery,People Places & Services Directorate,Xerox (UK) Ltd,900150787,15346.39,Not Applicable,
Department for Business Energy and Industrial Strategy,Intellectual Property Office,14/10/2016,Office Machinery,People Places & Services Directorate,Xerox Finance,97058981,34243.73,Not Applicable,
Department for Business Energy and Industrial Strategy,Intellectual Property Office,27/10/2016,Staff Costs,People Places & Services Directorate,Quadrilect Ltd,QL16-56,3476.74,Not Applicable,
Department for Business Energy and Industrial Strategy,Intellectual Property Office,07/10/2016,Postage & Delivery Costs,People Places & Services Directorate,CitySprint (UK) Ltd,1872790,3099.53,Not Applicable,
Department for Business Energy and Industrial Strategy,Intellectual Property Office,12/10/2016,Accommodation,People Places & Services Directorate,EDF ENERGY,2149310,26999.76,Not Applicable,
Department for Business Energy and Industrial Strategy,Intellectual Property Office,07/10/2016,Accommodation,People Places & Services Directorate,EDF ENERGY,2150208,1265.89,Not Applicable,
Department for Business Energy and Industrial Strategy,Intellectual Property Office,17/10/2016,Miscellaneous Expenses General,People Places & Services Directorate,Thomas Carroll Management Services Ltd,6020,498,Not Applicable,
Department for Business Energy and Industrial Strategy,Intellectual Property Office,24/10/2016,Staff Costs,People Places & Services Directorate,Sodexo Motivation Solutions UK Ltd,1030363,12216.61,Not Applicable,
Department for Business Energy and Industrial Strategy,Intellectual Property Office,14/10/2016,Staff Costs,People Places & Services Directorate,Sodexo Motivation Solutions UK Ltd,503363,152.81,Not Applicable,
Department for Business Energy and Industrial Strategy,Intellectual Property Office,24/10/2016,Staff Costs,People Places & Services Directorate,Sodexo Motivation Solutions UK Ltd,503392,8433.12,Not Applicable,
Department for Business Energy and Industrial Strategy,Intellectual Property Office,24/10/2016,Staff Costs,People Places & Services Directorate,Sodexo Motivation Solutions UK Ltd,604059,-1561.81,Not Applicable,
Department for Business Energy and Industrial Strategy,Intellectual Property Office,28/10/2016,Staff Costs,People Places & Services Directorate,Sodexo Motivation Solutions UK Ltd,604059A,1561.81,Not Applicable,
Department for Business Energy and Industrial Strategy,Intellectual Property Office,28/10/2016,Staff Costs,People Places & Services Directorate,Sodexo Motivation Solutions UK Ltd,604059CN,-1561.81,Not Applicable,
Department for Business Energy and Industrial Strategy,Intellectual Property Office,26/10/2016,Staff Costs,People Places & Services Directorate,Celtic Manor Resort,RH261016-FINAL,2038.5,Not Applicable,
Department for Business Energy and Industrial Strategy,Intellectual Property Office,05/10/2016,Accommodation,People Places & Services Directorate,Quality Floorcare Ltd,15403,3600,Not Applicable,
Department for Business Energy and Industrial Strategy,Intellectual Property Office,19/10/2016,Miscellaneous Expenses General,People Places & Services Directorate,Nora Nanayakkara,SB 19.10.16 1,27.7,Not Applicable,
Department for Business Energy and Industrial Strategy,Intellectual Property Office,19/10/2016,Miscellaneous Expenses General,People Places & Services Directorate,Nora Nanayakkara,SB 19.10.16 2,17.2,Not Applicable,
Department for Business Energy and Industrial Strategy,Intellectual Property Office,13/10/2016,Staff Costs,People Places & Services Directorate,The Clive Davis Partnership Ltd.,CDSC/2555,1440,Not Applicable,
Department for Business Energy and Industrial Strategy,Intellectual Property Office,17/10/2016,Miscellaneous Expenses General,People Places & Services Directorate,P.J. JONES,730691,225,Not Applicable,
Department for Business Energy and Industrial Strategy,Intellectual Property Office,25/10/2016,Accommodation,People Places & Services Directorate,SIG TRADING LTD,7033-60002565,1515.82,Not Applicable,
Department for Business Energy and Industrial Strategy,Intellectual Property Office,25/10/2016,Accommodation,People Places & Services Directorate,SIG TRADING LTD,7033-60002710,1856.78,Not Applicable,
Department for Business Energy and Industrial Strategy,Intellectual Property Office,26/10/2016,Accommodation,People Places & Services Directorate,SIG TRADING LTD,7033-60002996,2897.18,Not Applicable,
Department for Business Energy and Industrial Strategy,Intellectual Property Office,06/10/2016,Pay Costs,People Places & Services Directorate,HM REVENUE AND CUSTOMS,XD006727045975,2795.14,Not Applicable,
Department for Business Energy and Industrial Strategy,Intellectual Property Office,06/10/2016,Miscellaneous Expenses General,People Places & Services Directorate,HM REVENUE AND CUSTOMS,XG006627041319,4815.41,Not Applicable,
Department for Business Energy and Industrial Strategy,Intellectual Property Office,26/10/2016,Staff Costs,People Places & Services Directorate,Involve Me Training and Development Ltd,99,1000,Not Applicable,
Department for Business Energy and Industrial Strategy,Intellectual Property Office,03/10/2016,Accommodation,People Places & Services Directorate,D&M Mechanical Engineers Ltd,2751,72000,Not Applicable,
Department for Business Energy and Industrial Strategy,Intellectual Property Office,19/10/2016,Staff Costs,People Places & Services Directorate,Training Bytesize Ltd,4035,1206,Not Applicable,
Department for Business Energy and Industrial Strategy,Intellectual Property Office,05/10/2016,Staff Costs,People Places & Services Directorate,Kabin Hire Ltd,465830,170.4,Not Applicable,
Department for Business Energy and Industrial Strategy,Intellectual Property Office,28/10/2016,Staff Costs,People Places & Services Directorate,DBL Europe Ltd,95,9360,Not Applicable,
Department for Business Energy and Industrial Strategy,Intellectual Property Office,04/10/2016,Accommodation,People Places & Services Directorate,ENGIE Services Limited,1800012476,6720,Not Applicable,
Department for Business Energy and Industrial Strategy,Intellectual Property Office,28/10/2016,Accommodation,People Places & Services Directorate,HSS Hire Service Group Ltd,00958384CR,-298.08,Not Applicable,
Department for Business Energy and Industrial Strategy,Intellectual Property Office,27/10/2016,Miscellaneous Expenses General,People Places & Services Directorate,DEFENCE INTELLECTUAL PROPERTY RIGHTS,7470214,250,Not Applicable,
Department for Business Energy and Industrial Strategy,Intellectual Property Office,04/10/2016,Staff Costs,People Places & Services Directorate,DERYL DIX TRAINING & CONSULTANCY,IP-017-000907,4450,Not Applicable,
Department for Business Energy and Industrial Strategy,Intellectual Property Office,28/10/2016,Staff Costs,People Places & Services Directorate,DERYL DIX TRAINING & CONSULTANCY,IPO-0017-000913,750,Not Applicable,
Department for Business Energy and Industrial Strategy,Intellectual Property Office,18/10/2016,Accommodation,People Places & Services Directorate,Infineon Technologies,IRNPT1633,8500.8,Not Applicable,
Department for Business Energy and Industrial Strategy,Intellectual Property Office,05/10/2016,Staff Costs,People Places & Services Directorate,Therapy Works.training,ND2/CD/16,550,Not Applicable,
Department for Business Energy and Industrial Strategy,Intellectual Property Office,19/10/2016,Miscellaneous Expenses General,People Places & Services Directorate,BUSINESS DISABILITY FORUM,13407,5100,Not Applicable,
Department for Business Energy and Industrial Strategy,Intellectual Property Office,18/10/2016,Legal & Hearings,People Places & Services Directorate,Capital People Consultants,12544,16384.8,Not Applicable,
Department for Business Energy and Industrial Strategy,Intellectual Property Office,20/10/2016,Staff Costs,People Places & Services Directorate,Association of Facilitators,448,4818.2,Not Applicable,
Department for Business Energy and Industrial Strategy,Intellectual Property Office,06/10/2016,Travel & Subsistence,Projects,Personal expenses,OS000000045,390.32,Not Applicable,
Department for Business Energy and Industrial Strategy,Intellectual Property Office,06/10/2016,Travel & Subsistence,Projects,Personal expenses,UK000000148,83.77,Not Applicable,
Department for Business Energy and Industrial Strategy,Intellectual Property Office,31/10/2016,Travel & Subsistence,Projects,Personal expenses,UK000000357,81.6,Not Applicable,
Department for Business Energy and Industrial Strategy,Intellectual Property Office,18/10/2016,Information Technology,Projects,MS MODERNISATION LTD,104160058,142560,Not Applicable,
Department for Business Energy and Industrial Strategy,Intellectual Property Office,24/10/2016,Information Technology,Projects,MS MODERNISATION LTD,104160059A,8225.34,Not Applicable,
Department for Business Energy and Industrial Strategy,Intellectual Property Office,31/10/2016,Information Technology,Projects,MS MODERNISATION LTD,104160059CR,-8225.34,Not Applicable,
Department for Business Energy and Industrial Strategy,Intellectual Property Office,28/10/2016,Information Technology,Projects,MS MODERNISATION LTD,104160073,36252,Not Applicable,
Department for Business Energy and Industrial Strategy,Intellectual Property Office,28/10/2016,Information Technology,Projects,MS MODERNISATION LTD,104160076,68.77,Not Applicable,
Department for Business Energy and Industrial Strategy,Intellectual Property Office,06/10/2016,Pay Costs,Projects,,2009428,22476.46,Not Applicable,
Department for Business Energy and Industrial Strategy,Intellectual Property Office,06/10/2016,Pay Costs,Projects,,2011420,22476.46,Not Applicable,
Department for Business Energy and Industrial Strategy,Intellectual Property Office,05/10/2016,Travel & Subsistence,Projects,,1274,27.6,Not Applicable,
Department for Business Energy and Industrial Strategy,Intellectual Property Office,05/10/2016,Information Technology,Projects,,IN4058755,9405,Not Applicable,
Department for Business Energy and Industrial Strategy,Intellectual Property Office,18/10/2016,Staff Costs,Projects,,1537644,1980,Not Applicable,
Department for Business Energy and Industrial Strategy,Intellectual Property Office,12/10/2016,Miscellaneous Expenses General,Projects,,UPC-RJACOB 09/10,1824,Not Applicable,
Department for Business Energy and Industrial Strategy,Intellectual Property Office,13/10/2016,Miscellaneous Expenses General,Projects,,41999,1627.72,Not Applicable,
Department for Business Energy and Industrial Strategy,Intellectual Property Office,24/10/2016,Information Technology,Projects,,MIG-IPO-001-017,1620,Not Applicable,
Department for Business Energy and Industrial Strategy,Intellectual Property Office,17/10/2016,Information Technology,Projects,,SI001077,9504,Not Applicable,
Department for Business Energy and Industrial Strategy,Intellectual Property Office,26/10/2016,Information Technology,Projects,,2016-138,418.8,Not Applicable,
Department for Business Energy and Industrial Strategy,Intellectual Property Office,04/10/2016,Information Technology,Projects,,39,15600,Not Applicable,
Department for Business Energy and Industrial Strategy,Intellectual Property Office,05/10/2016,Legal & Hearings,Projects,,271458,5896.14,Not Applicable,
Department for Business Energy and Industrial Strategy,Intellectual Property Office,26/10/2016,Legal & Hearings,Projects,,272556,4853.5,Not Applicable,
Department for Business Energy and Industrial Strategy,Intellectual Property Office,18/10/2016,Travel & Subsistence,Trade Mark Directorate,,OS000000065,58.1,Not Applicable,
Department for Business Energy and Industrial Strategy,Intellectual Property Office,03/10/2016,Travel & Subsistence,Trade Mark Directorate,,EXPSNE,233.54,Not Applicable,
Department for Business Energy and Industrial Strategy,Intellectual Property Office,13/10/2016,Travel & Subsistence,Trade Mark Directorate,,UK000000273,91.29,Not Applicable,
Department for Business Energy and Industrial Strategy,Intellectual Property Office,31/10/2016,Travel & Subsistence,Trade Mark Directorate,,OS000000075,195.61,Not Applicable,
Department for Business Energy and Industrial Strategy,Intellectual Property Office,21/10/2016,Travel & Subsistence,Trade Mark Directorate,,UK000000346,23,Not Applicable,
Department for Business Energy and Industrial Strategy,Intellectual Property Office,18/10/2016,Travel & Subsistence,Trade Mark Directorate,,OS000000067,131.33,Not Applicable,
Department for Business Energy and Industrial Strategy,Intellectual Property Office,24/10/2016,Travel & Subsistence,Trade Mark Directorate,,UK000000319,5,Not Applicable,
Department for Business Energy and Industrial Strategy,Intellectual Property Office,24/10/2016,Travel & Subsistence,Trade Mark Directorate,,UK000000321,20,Not Applicable,
Department for Business Energy and Industrial Strategy,Intellectual Property Office,18/10/2016,Travel & Subsistence,Trade Mark Directorate,,UK000000297,10,Not Applicable,
Department for Business Energy and Industrial Strategy,Intellectual Property Office,31/10/2016,Travel & Subsistence,Trade Mark Directorate,,UK000000271,72.18,Not Applicable,
Department for Business Energy and Industrial Strategy,Intellectual Property Office,31/10/2016,Travel & Subsistence,Trade Mark Directorate,,UK000000274,19.5,Not Applicable,
Department for Business Energy and Industrial Strategy,Intellectual Property Office,18/10/2016,Travel & Subsistence,Trade Mark Directorate,,OS000000068,110.12,Not Applicable,
Department for Business Energy and Industrial Strategy,Intellectual Property Office,24/10/2016,Travel & Subsistence,Trade Mark Directorate,,UK000000355,17.6,Not Applicable,
Department for Business Energy and Industrial Strategy,Intellectual Property Office,06/10/2016,Travel & Subsistence,Trade Mark Directorate,,UK000000246,25.2,Not Applicable,
Department for Business Energy and Industrial Strategy,Intellectual Property Office,27/10/2016,Travel & Subsistence,Trade Mark Directorate,,UK000000320,22.68,Not Applicable,
Department for Business Energy and Industrial Strategy,Intellectual Property Office,19/10/2016,Travel & Subsistence,Trade Mark Directorate,,UK000000283,15.39,Not Applicable,
Department for Business Energy and Industrial Strategy,Intellectual Property Office,06/10/2016,Travel & Subsistence,Trade Mark Directorate,,UK000000221,18.06,Not Applicable,
Department for Business Energy and Industrial Strategy,Intellectual Property Office,31/10/2016,Travel & Subsistence,Trade Mark Directorate,,UK000000326,36.99,Not Applicable,
Department for Business Energy and Industrial Strategy,Intellectual Property Office,31/10/2016,Travel & Subsistence,Trade Mark Directorate,,UK000000363,10,Not Applicable,
Department for Business Energy and Industrial Strategy,Intellectual Property Office,27/10/2016,Travel & Subsistence,Trade Mark Directorate,,UK000000358,47.17,Not Applicable,
Department for Business Energy and Industrial Strategy,Intellectual Property Office,27/10/2016,Travel & Subsistence,Trade Mark Directorate,,UK000000360,8.5,Not Applicable,
Department for Business Energy and Industrial Strategy,Intellectual Property Office,06/10/2016,Travel & Subsistence,Trade Mark Directorate,,OS000000044,89.29,Not Applicable,
Department for Business Energy and Industrial Strategy,Intellectual Property Office,06/10/2016,Travel & Subsistence,Trade Mark Directorate,,OS000000057,171.25,Not Applicable,
Department for Business Energy and Industrial Strategy,Intellectual Property Office,27/10/2016,Travel & Subsistence,Trade Mark Directorate,,OS000000074,69.5,Not Applicable,
Department for Business Energy and Industrial Strategy,Intellectual Property Office,05/10/2016,Travel & Subsistence,Trade Mark Directorate,,UK000000140,113.05,Not Applicable,
Department for Business Energy and Industrial Strategy,Intellectual Property Office,05/10/2016,Travel & Subsistence,Trade Mark Directorate,,UK000000226,73.22,Not Applicable,
Department for Business Energy and Industrial Strategy,Intellectual Property Office,18/10/2016,Travel & Subsistence,Trade Mark Directorate,,UK000000279,27.8,Not Applicable,
Department for Business Energy and Industrial Strategy,Intellectual Property Office,14/10/2016,Travel & Subsistence,Trade Mark Directorate,,UK000000289,21.17,Not Applicable,
Department for Business Energy and Industrial Strategy,Intellectual Property Office,12/10/2016,Trade Mark Receipts,Trade Mark Directorate,,J772688,50,Not Applicable,
Department for Business Energy and Industrial Strategy,Intellectual Property Office,12/10/2016,Trade Mark Receipts,Trade Mark Directorate,,J776454,200,Not Applicable,
Department for Business Energy and Industrial Strategy,Intellectual Property Office,24/10/2016,Trade Mark Receipts,Trade Mark Directorate,,J777522,100,Not Applicable,
Department for Business Energy and Industrial Strategy,Intellectual Property Office,24/10/2016,Trade Mark Receipts,Trade Mark Directorate,,J776952,50,Not Applicable,
Department for Business Energy and Industrial Strategy,Intellectual Property Office,24/10/2016,Trade Mark Receipts,Trade Mark Directorate,,J778394,50,Not Applicable,
Department for Business Energy and Industrial Strategy,Intellectual Property Office,17/10/2016,Legal & Hearings,Trade Mark Directorate,,93223,3481.21,Not Applicable,
Department for Business Energy and Industrial Strategy,Intellectual Property Office,28/10/2016,Staff Costs,Trade Mark Directorate,,OP-I033466CR,-658.5,Not Applicable,
Department for Business Energy and Industrial Strategy,Intellectual Property Office,05/10/2016,Travel & Subsistence,Trade Mark Directorate,,1274,166.8,Not Applicable,
Department for Business Energy and Industrial Strategy,Intellectual Property Office,05/10/2016,Travel & Subsistence,Trade Mark Directorate,,1274,10.8,Not Applicable,
Department for Business Energy and Industrial Strategy,Intellectual Property Office,05/10/2016,Travel & Subsistence,Trade Mark Directorate,,1274,28.8,Not Applicable,
Department for Business Energy and Industrial Strategy,Intellectual Property Office,17/10/2016,Legal & Hearings,Trade Mark Directorate,,433573,33.48,Not Applicable,
Department for Business Energy and Industrial Strategy,Intellectual Property Office,24/10/2016,Legal & Hearings,Trade Mark Directorate,,433652,14578.28,Not Applicable,
Department for Business Energy and Industrial Strategy,Intellectual Property Office,06/10/2016,Pay Costs,Trade Mark Directorate,,XD006727045975,5597.22,Not Applicable,
Department for Business Energy and Industrial Strategy,Intellectual Property Office,19/10/2016,Miscellaneous Expenses General,Trade Mark Directorate,,CASE REF: 40641,95.58,Not Applicable,
Department for Business Energy and Industrial Strategy,Intellectual Property Office,14/10/2016,Travel & Subsistence,Trade Mark Directorate,,TMD,315.39,Not Applicable,
